{"text_format":"1","workbook":"xlsx","n_sheets":23,"sheets":["Cover Page","Facility Info","Operational Data","Operational Summary","Perf. Form 1","Energy Form 1","Permit Compliance","Improvements","Public Liasion","CO2 N2O","Residues","Water","Air (periodic)","Air (CEMS)","HCl","SO2","NOx","TOC","Particulates","CO 0.5 hourly","CO 95% 10 min","NH3","Template changes log"],"not_rendered":{"charts":8,"images":4,"macros":1,"external_links":0,"defined_names":23,"comments":0,"pivot_tables":0},"unopened":[],"bounds":{"document_bytes":16777216,"sheet_cells":100000,"rows_first":2000,"rows_last":500,"rows_between":2000,"halvings":0,"cell_chars":16384,"cell_head_chars":4096},"cells_cut":0,"cells_raw":0,"read":"whole","date_system":"1900"}

{"sheet":"Cover Page","index":0,"n_rows":53,"n_cols":11,"rows_kept":53,"cut":false,"hidden":false,"merged":[[13,10,18,12],[34,1,34,8],[0,3,5,6],[7,1,23,8],[28,1,28,8],[30,1,30,8],[32,1,32,8],[48,2,48,3],[48,6,48,8],[52,2,52,3],[36,1,36,8],[40,2,40,8],[42,2,42,4],[44,2,44,4],[46,2,46,3],[46,6,46,8]]}
[null,null,null,"Add company logo"]
[null,null,null,null,null,null,null,null,null,null,"Template version 25.1a (for incinerators) - 27/11/25"]
[]
[null,null,null,null,null,null,null,null,null,null,"Note that there is another version of this template available for co-incinerators"]
[]
[]
[]
[null,"Add photo"]
[]
[]
[]
[]
[null,null,null,null,null,null,null,null,null,null,"Notes:"]
[null,null,null,null,null,null,null,null,null,null,"This template may require adjustments by individual operators to meet specific reporting requirements as defined in the site Permit(s)"]
[]
[]
[]
[]
[]
[]
[]
[]
[]
[]
[]
[]
[]
[]
[null,"Annual Performance Report 2025"]
[]
[null,"EPR/NP3739PD/V010"]
[]
[null,"The CSWDC Waste to Energy Plant"]
[]
[null,"The Coventry and Solihull Waste Disposal Company Limited"]
[]
[null,"CSWDC"]
[]
[null,"Year:",2025]
[]
[null,"Address:","Bar Road, Coventry CV3 4AN"]
[]
[null,"Tel: ","02476 6507400"]
[]
[null,"Email: ","info@cswdc.co.uk"]
[]
[null,"Prepared by:","C Mitcheson",null,null,"Position:","EHS Advisor"]
[]
[null,"Approved by:","E Price",null,null,"Position:","C&P Manager "]
[]
[null,"Version:",1]
[]
[null,"Issue Date:","2026-02-10"]

{"sheet":"Facility Info","index":1,"n_rows":22,"n_cols":11,"rows_kept":22,"cut":false,"hidden":false,"merged":[[4,0,17,8],[21,0,53,8],[4,10,13,13],[21,10,30,13]]}
[{"$f":"+'Cover Page'!$B$29","v":"Annual Performance Report 2025"},null,null,null,{"$f":"+'Cover Page'!$B$33","v":"The CSWDC Waste to Energy Plant"}]
[]
["Plant Description and Design",null,null,null,null,null,null,null,null,null,"Notes:"]
[]
["The Waste to Energy plant, which is located at Bar Road in Coventry, processes Municipal Household waste arising in the City of Coventry and the neighbouring borough of Solihull. Municipal household waste from other nearby local authorities is also processed at the plant. \n\nThe plant is operated by The Coventry and Solihull Waste Disposal Company Ltd.    The main activity at the installation is thermal treatment of municipal waste and recovery of energy, in the form of heat which is converted to electricity for export to the grid. The installation also has the capability to export heat in the form of either High or Low Pressure steam to a district heating scheme operated by Bring Energy (formally Engie). A limited amount of hazardous waste, containing less than 1% halogenated organic substances (as chlorine), is also burned with the municipal waste. \n \nThe installation includes waste receipt and storage, steam generation boilers, abatement of the exhaust gas, on-site storage of residues and all systems for controlling and monitoring combustion operation. The steam produced is used to drive 2 steam turbine driven generators.\n\nThe plant design is capable of processing approximately 315,000 tonnes of waste per annum/36 tonnes per hour in three combustion units (12 tonne per unit). The heat produced is used to generate 17.7MW of electricity and up to 16MW heat energy. \n\nRefuse collection vehicles enter the reception hall and deposit their waste into a storage bunker. The material is then loaded by crane into each of the combustion units via feed hoppers from the storage bunker. After entering the combustion chamber via the refuse feed ram the material is allowed to fall onto the grate in a controlled manner. The moving grate mechanisms are used to agitate the waste as it progresses down to the ash discharge. \n \nAs the waste moves along, pre-heated primary air is introduced from beneath the grate enabling the waste to go through a series of drying and burning areas. Secondary air is introduced from above the grate for combustion control.  Auxiliary gas fired burners are located in the combustion chamber both to heat it up on start-up and to maintain the final gas temperature if necessary. The hot gases are maintained at a minimum temperature of 850 degrees C for 2 seconds in the combustion chamber before passing to the boiler, economiser and abatement plant. Each combustion unit is equipped with a 3-bank water tube boiler, raising steam at 17 bar and 208 degrees C.  Economisers are fitted downstream of each combustion unit to pre-heat the incoming feed water. \n\nCombustion is controlled with the use of an infrared imaging computer system, which uses fuzzy logic systems to control various parameters of the plant, ensuring improved efficiency and emission performance when compared to fully manual control.\n \nEach combustion unit is provided with its own gas cleaning and monitoring equipment. Gas cleaning comprises activated carbon injection, then dry scrubbing with hydrated lime. The gases pass through bag filters to remove particulates prior to discharge to atmosphere via a single 92m stack. NOx control is achieved by Selective Non Catalytic Reduction (SNCR) using ammonium hydroxide injection. \n \nEmissions from the stack are continuously monitored for particulates, carbon monoxide (CO), sulphur dioxide (SO2), hydrogen chloride (HCl), oxygen (O2), nitrogen oxides (NOx) and volatile organic compounds (VOC). \n\nThere is no discharge of process liquids to controlled waters. Uncontaminated surface and roof waters are discharged to the surface water drainage system, via penstock equipped interceptors. All process waste waters are discharged to foul sewer and these are treated at Finham Sewage Treatment Works, which is operated by Severn Trent Water.\n\nBottom ash and metal content from the combustion unit grate is quenched with water. Both fractions are then conveyed to individual concrete storage bunkers prior to removal for reprocessing into aggregates or for recycling back into the steel industry. \nAir Pollution Control Residues (APCR) from the bag filters are collected continuously and stored in an enclosed silo prior to removal from site for disposal. ",null,null,null,null,null,null,null,null,null,"Include summary of plant design, design capacity, no. of combustion lines, electrical and heat capacity and any other general information that describes the facility, its location and purpose "]
[]
[]
[]
[]
[]
[]
[]
[]
[]
[]
[]
[]
[]
[]
["Summary of Operational Processes and Procedures"]
[]
["The plant consists of three separate combustion units that process up to a maximum of 12 tonnes of waste per hour.\nThere are two steam turbine driven electrical generating sets on the plant which convert the heat energy recovered from the combustion process into electricity. The generating sets are designated as G1 and G2. G1 has a capacity of 12.9MW and G2 a capacity of 4.8 MW. The process energy requirements are taken from the electricity generated and the surplus is exported to the grid. The plant also has the capacity to export heat, in the form of high pressure and low pressure steam.\nThe following table categorises the types of wastes processed.\nEWC Code and Description               \n02 03 04 materials unsuitable for consumption or processing\n03 01 04* sawdust, shavings, cuttings, wood, particle board and veneer containing hazardous \nsubstances (Oily and wood/veneer hazardous waste)\n13 07 01* fuel oil and diesel (Oily and wood/veneer hazardous waste)\n13 08 99* wastes not otherwise specified (Oily and wood/veneer hazardous waste)\n15 02 02* absorbents, filter materials (including oil filters not otherwise specified), wiping cloths, protective clothing contaminated by hazardous substances (Oily and wood/veneer hazardous waste)\n15 02 03 absorbents, filter materials, wiping cloths and protective clothing other than those mentioned in 15 02 02 (Oily and wood/veneer hazardous waste)                                                                                                                        16 07 08* wastes containing oil (Oily and wood/veneer hazardous waste)\n18 01 04 wastes whose collection and disposal is not subject to special requirements in order to prevent infection (for example dressings, plaster casts, linen, disposable clothing, diapers)\n18 01 06* chemicals consisting of or containing hazardous substances\n18 01 07 chemicals other than those mentioned in 18 01 06\n18 01 09 medicines other than those mentioned in 18 01 08\n19 01 99 wastes not otherwise specified\n19 12 01 paper and cardboard\n19 12 08 textiles\n19 12 10 combustible waste (refuse derived fuel)\n19 12 12 other wastes (including mixtures of materials) from mechanical treatment of wastes other than those mentioned in 19 12 11\n20 01 01 paper and cardboard\n20 01 08 biodegradable kitchen and canteen waste\n20 01 11 textiles\n20 02 01 biodegradable waste\n20 03 01 mixed municipal waste\n20 03 02 waste from markets\n20 03 07 bulky waste\n20 03 99 municipal wastes not otherwise specified\n",null,null,null,null,null,null,null,null,null,"Include summary of key processes and procedures such as (but not limited to); waste reception, control rooms, grate, bed and boiler, energy & heat  generation, cooling systems, residue management, emission controls, health and safety systems, maintenance"]

{"sheet":"Operational Data","index":2,"n_rows":65,"n_cols":10,"rows_kept":65,"cut":false,"hidden":false,"merged":[[4,9,23,9],[25,9,29,9],[53,0,57,0],[34,1,39,1],[3,1,3,2],[10,1,22,1],[26,1,28,1],[7,2,7,3]]}
[{"$f":"+'Cover Page'!$B$29","v":"Annual Performance Report 2025"},null,null,null,{"$f":"+'Cover Page'!$B$33","v":"The CSWDC Waste to Energy Plant"}]
[]
["Operational Data"]
["Plant Size:",315000,null,"tonnes pa",null,null,null,null,null,"Notes:"]
["Nominal net thermal input:",77,"MWth",null,null,null,null,null,null,"* Export capacity = nominal generation capacity at the generator terminals minus nominal parasitic load.\n\n** CHP and district heating plants only - put N/A if no heat export.\n\n***  Combusted tonnage = tonnes delivered in period + (tonnes in bunker at start of period – tonnes in bunker at end of period), or equivalent calculation depending on plant type\n\n**** Availability Definition: The availability of a line is to be calculated by the number of hours the line reported Continuously Monitored emission levels to the Regulator through the calendar year divided by the total number of hours in that year. \n\nThe overall plant availability is calculated as the mean of all lines in the plant. For clarity this includes periods of abnormal operation.  \n\nRationale: The primary function of an Energy from Waste facility is the disposal of waste. It follows therefore that the availability of a plant is determined by the period of time a facility spends undertaking this activity.\n\n*****NCV of waste: This should be completed for all plants which have a boiler. Calculate using total thermal power produced by boiler/boiler efficiency, or other suitable calculation. \n"]
["Nominal electrical export capacity*:",17.7,"MWe"]
["Nominal heat export capacity**:",16,"MWth"]
["No. of combustion lines:",3,"No. of steam turbines:",null,2]
[]
["Waste types received","Unit","Q1","Q2","Q3","Q4","Year Total","%"]
["Household / Local Authority","tonnes",76867.739999999991,70622.040000000008,67845.8,74996.900000000009,{"$f":"SUM(C11:F11)","v":290332.48000000004},{"$f":"IF(G11>0,G11/$G$21,\"-\")","v":1}]
["Commercial & Industrial ",null,0,0,0,0,{"$f":"SUM(C12:F12)","v":0},"-"]
["Hazardous ",null,0,0,0,0,0,"-"]
["Clinical",null,0,0,0,0,0,"-"]
["Waste wood (biomass) ",null,null,null,null,null,0,"-"]
["Refuse Derived Fuel (incl. SRF) - H'hold/LA",null,null,null,null,null,{"$f":"SUM(C16:F16)","v":0},"-"]
["Refuse Derived Fuel (incl. SRF) - C&I",null,null,null,null,null,0,"-"]
["Other [Please specify]",null,null,null,null,null,0,"-"]
["Other [Please specify]",null,null,null,null,null,0,"-"]
["Other [Please specify]",null,null,null,null,null,0,"-"]
["Total waste received",null,{"$f":"SUM(C11:C20)","v":76867.739999999991},{"$f":"SUM(D11:D20)","v":70622.040000000008},{"$f":"SUM(E11:E20)","v":67845.8},{"$f":"SUM(F11:F20)","v":74996.900000000009},290332.48000000004]
["Rejected Waste ",null,null,null,null,null,{"$f":"SUM(C22:F22)","v":0},{"$f":"IF(G22>0,G22/$G$21,\"-\")","v":"-"}]
["Unprocessed waste transferred out",null,null,null,null,null,{"$f":"SUM(C23:F23)","v":0},{"$f":"IF(G23>0,G23/$G$21,\"-\")","v":"-"}]
["Total waste combusted ***",null,{"$f":"C21","v":76867.739999999991},{"$f":"D21","v":70622.040000000008},67845.8,74996.900000000009,{"$f":"SUM(C24:F24)","v":290332.48000000004}]
[]
["Energy Usage / Export","Unit","Q1","Q2","Q3","Q4","Year Total","KWh/te",null,"Password for protected cells\nA password has been set to prevent accidental  editing of cells with formulae. \nIf you still need to make an edit for some reason then the password = 1234"]
["Power generated at generator terminals","MWh",8175.4,29272.11,30180.400000000001,29713.46,{"$f":"SUM(C27:F27)","v":97341.37},{"$f":"IF(G27>0,G27*1000/$G$24,\"-\")","v":335.2755089613122}]
["Power exported to grid and other external user(s)",null,3861,15567,18249,18039,{"$f":"SUM(C28:F28)","v":55716},{"$f":"IF(G28>0,G28*1000/$G$24,\"-\")","v":191.90412316252039}]
["Power imported",null,95,83,371,1273,1822,{"$f":"IF(G29>0,G29*1000/$G$24,\"-\")","v":6.2755637949980647}]
["Indicative parasitic load","%",{"$f":"IF(C27>0,(C27-C28)/C27,\"-\")","v":0.52772953005357537},{"$f":"IF(D27>0,(D27-D28)/D27,\"-\")","v":0.46819686042447917},0.39533604591059102,0.39290139889464232,{"$f":"IF(G27>0,1-G28/(G27+G29),\"-\")","v":0.43813930486630293}]
["Thermal Energy Exported **",null,3801,3080,2360,3083,{"$f":"SUM(C31:F31)","v":12324},{"$f":"IF(G31>0,G31*1000/$G$24,\"-\")","v":42.447885954750909}]
["R1 value (if applicable)","R1","-","-","-","-"]
[]
["Waste Disposal & Recovery","Unit","Q1","Q2","Q3","Q4","Year Total","% inputs"]
["APC Residues - produced","tonnes",3371,3022,3101,3016,{"$f":"SUM(C35:F35)","v":12510},{"$f":"IF(G35>0,G35/$G$24,\"-\")","v":4.3088530776852797E-2}]
["IBA - produced",null,11113,11228,10643,10508,43492,{"$f":"IF(G36>0,G36/$G$24,\"-\")","v":0.14980066990782429}]
["Metals recycling",null,1303,1196,1150,1268,{"$f":"SUM(C37:F37)","v":4917},1.693575586169346E-2]
["Other",null,0,0,0,0,{"$f":"SUM(C38:F38)","v":0},"-"]
["Other",null,0,0,0,0,0,"-"]
["Other",null,0,0,0,0,0,"-"]
[]
["Raw Material Usage","Unit","Q1","Q2","Q3","Q4","Year Total","Qty./te"]
["Mains Water","ltrs",30673000,55182000,109550000,49559315,{"$f":"SUM(C43:F43)","v":244964315},{"$f":"IF(G43>0,G43/$G$24,\"-\")","v":843.73720432519281}]
["Other Water","ltrs",0,36869000,5654000,59995000,102518000,{"$f":"IF(G44>0,G44/$G$24,\"-\")","v":353.10551544215787}]
["Ammonia","kgs",323000,391000,415000,298000,1427000,4.9150546297816895]
["Urea","kgs",0,0,0,0,{"$f":"SUM(C46:F46)","v":0},"-"]
["Activated Carbon","kgs",21540,23080,24340,21600,90560,0.31191825316960742]
["Lime / hydrated lime","kgs",1710000,1413600,1489000,1270780,5883380,20.26428458848283]
["Fuel oil","ltrs",5250,13448,9450,7590,35738,0.12309335834557675]
["Gas","m3",219984,165928,89367,183487,658766,2.2690055208428621]
["Other",null,null,null,null,null,0,"-"]
[]
["Summary ","Line/Unit","Q1","Q2","Q3","Q4","Year Total",null,"Hrs in year "]
["Availability of waste combustion by line, hrs ****",1,1891,1747,1829,2023,{"$f":"SUM(C54:F54)","v":7490},{"$f":"+G54/$I$54","v":0.85502283105022836},8760,"Change this figure to 8784 in a leap year"]
[null,2,2141,1997,1831,1949,7918,{"$f":"+G55/$I$54","v":0.90388127853881284}]
[null,3,2106,1905,1854,1863,7728,0.88219178082191785]
[null,4,null,null,null,null,{"$f":"SUM(C57:F57)","v":0},0]
[null,5,null,null,null,null,{"$f":"SUM(C58:F58)","v":0},0]
["Hours of turbine operations, hrs",1,0,188.3,250.3,226.7,665.3,7.5947488584474879E-2]
["Hours of turbine operations, hrs",2,294,262.10000000000002,154,93,803.1,9.1678082191780821E-2]
["Hours of heat / steam export**","hours",{"$f":"SUM(C59:C60)","v":294},{"$f":"SUM(D59:D60)","v":450.40000000000003},404.3,319.7,1468.4,{"$f":"IF(B61>0,G60/I54,\"n/a\")","v":9.1678082191780821E-2}]
["Net calorific value of waste*****","MJ/kg",8.69,8.69,8.69,8.69]
["Abnormal operation events","qty.",1,0,0,0,1,{"$f":"IF(G63>0,\"yes\",\"no\")","v":"yes"}]
["Abnormal operation duration","hours",0.5,0,0,0,0.5,{"$f":"+(G64)/I54","v":5.7077625570776254E-5}]
["Permit Breaches","qty.",0,0,0,0,0,{"$f":"IF(G65>0,\"yes\",\"no\")","v":"no"}]

{"sheet":"Operational Summary","index":3,"n_rows":72,"n_cols":11,"rows_kept":72,"cut":false,"hidden":false,"merged":[[74,2,74,8],[45,2,45,8],[46,2,46,8],[72,2,72,8],[73,2,73,8],[49,2,49,8],[50,2,50,8],[51,2,51,8],[52,2,52,8],[55,2,55,8],[53,2,53,8],[54,2,54,8],[56,2,56,8],[57,2,57,8],[58,2,58,8],[29,10,72,13],[4,0,26,8],[4,10,13,13],[28,1,28,8],[29,2,29,8],[38,2,38,8],[39,2,39,8],[40,2,40,8],[41,2,41,8],[42,2,42,8],[43,2,43,8],[44,2,44,8],[47,2,47,8],[48,2,48,8],[66,2,66,8],[67,2,67,8],[68,2,68,8],[59,2,59,8],[60,2,60,8],[61,2,61,8],[62,2,62,8],[63,2,63,8],[30,2,30,8],[31,2,31,8],[32,2,32,8],[33,2,33,8],[34,2,34,8],[35,2,35,8],[36,2,36,8],[37,2,37,8],[69,2,69,8],[70,2,70,8],[71,2,71,8],[64,2,64,8],[65,2,65,8]]}
[{"$f":"+'Cover Page'!$B$29","v":"Annual Performance Report 2025"},null,null,null,{"$f":"+'Cover Page'!$B$33","v":"The CSWDC Waste to Energy Plant"}]
[]
["Summary of Plant Operations and Maintenance during the reporting year",null,null,null,null,null,null,null,null,null,"Notes:"]
[]
["Units 1 and 3 have two minor outages during the year. Unit 2 has a minor and a major outage.\nThere was also a Total plan outage.\nExplosive cleaning took place on units 2 and 3 each month with Unit 1 also having explosive cleaning prior to each outage.\n\nRepairs to the main turbine (G1) were completed in September 2025. The turbine was operational from April on a reduced load.\nG2 had a major service.\n\n",null,null,null,null,null,null,null,null,null,"Include summary of key operational and/or maintenance activity undertaken in the year, such as any major component upgrades and/or replacements "]
[]
[]
[]
[]
[]
[]
[]
[]
[]
[]
[]
[]
[]
[]
[]
[]
[]
[]
[]
[]
[]
[]
[]
[{"$f":"+'Cover Page'!C39","v":2025},"Plant shut-downs"]
["Start date","End date","Reason for shut-down",null,null,null,null,null,null,null,"Provide a very brief reason for plant shut-down e.g. \"Shut-down prior to major outage\"; \"Emergency shut-down due to boiler tube leak\". All emergency shut-downs must be listed (irrespective of whether or not they were required to be reported to the EA). \n\nThere is no need to include periods of hot-standby here (e.g. to clear feed chute hopper blockages).\n\nFor clinical waste incinerators which require regular shut-downs for boiler cleaning, there is no need to record these here (only those prior to major outages, and emergency shut-downs). "]
["2025-01-04","2025-01-07","Unit 1 - Grate Repairs following explosion"]
["2025-01-10","2025-01-11","Unit 1 - Boiler wall explosion damage repairs"]
["2025-01-17","2025-01-19","Unit 1 - Grate Repairs following explosion"]
["2025-01-06","2025-01-08","Unit 3 - Grate Repairs following explosion"]
["2025-01-16","2025-01-16","Unit 3 - Feed chute blockage"]
["2025-02-07","2025-02-08","Unit 1 - Grate Repairs following explosion"]
["2025-02-14","2025-02-17","Unit 1 - Boiler Tube Repairs"]
["2025-02-22","2025-02-22","Unit 1 - Bag Filter Issues"]
["2026-02-11","2025-02-11","Unit 3 - Booster Pump"]
["2025-03-17","2025-03-17","Unit 1 - Insufficient lime stock"]
["2025-04-01","2025-04-08","Unit 1 - Planned Outage"]
["2025-04-09","2025-04-11","Unit 1 - Feed table repair issues"]
["2025-04-26","2025-04-27","Unit 1 - Oil Leak on grate cylinder"]
["2025-04-09","2025-04-16","Unit 2 - Planned Outage"]
["2025-04-13","2025-04-13","Unit 3 - Hydraulic Pack Issues"]
["2025-04-24","2025-04-24","Unit 3 - Grate issues"]
["2025-04-25","2025-04-25","Unit 3 - Lime silo conveyer blockage"]
["2025-05-03","2025-05-03","Unit 1 - FD Fan Issue"]
["2025-05-07","2025-05-07","Unit 1 - FD Fan Issue"]
["2025-05-15","2025-05-15","Unit 1 - Repairs to FD Fan and B Burner"]
["2025-06-11","2025-06-14","Unit 1 - Decliner and Burner Repairs"]
["2025-06-19","2025-06-21","Unit 1 - Tube Leak Repairs"]
["2025-06-04","2025-06-04","Unit 2 - B Side Grate Issues"]
["2025-06-03","2025-06-13","Unit 3 - Planned Outage"]
["2025-07-31","2025-07-31","Unit 3 - Grate cylinder failure and replacement"]
["2025-08-08","2025-08-08","Unit 1 - Generation Bank water leak"]
["2025-08-15","2025-08-16","Unit 2 - Grate Hydraulic Repair"]
["2025-08-01","2025-08-01","Unit 3 - Grate Cylinder failure and replacement"]
["2025-08-29","2025-08-29","Unit 3 - Blockage between clinker roller and ash discharger"]
["2025-09-04","2025-09-04","Unit 1 - Grate 'B' Cylinder Issue"]
["2025-09-16","2025-10-04","Unit 1 - Plannd Outage"]
["2025-09-16","2025-10-12","Unit 2 - Planned Outage"]
["2025-09-16","2025-09-29","Unit 3 - Planned Outage"]
["2025-10-06","2025-10-13","Unit 1 - Tube Failure and Repair"]
["2025-10-11","2025-10-11","Unit 1 - No cranes available"]
["2025-10-04","2025-10-05","Unit 3 - CO Issues"]
["2025-10-08","2025-10-12","Unit 3 - Tube Leak and Repair"]
["2025-11-01","2025-11-01","Unit 3 - Power Surge"]
["2025-11-11","2025-11-11","Unit 3 - Hydraulic Pack Issues"]
["2025-11-18","2025-11-26","Unit 3 - Planned Outage"]
["2025-12-16","2025-12-16","Unit 1 - Grate Cylinder Replacement"]
["2025-12-11","2025-12-11","Unit 3 - Drum Safety Valve Reset"]

{"sheet":"Perf. Form 1","index":4,"n_rows":54,"n_cols":10,"rows_kept":54,"cut":false,"hidden":false,"merged":[[9,0,9,9],[10,0,10,1],[10,2,10,3],[10,4,10,5],[10,6,10,7],[10,8,10,9],[2,0,2,4],[3,1,3,4],[5,3,5,4],[5,6,5,7],[8,0,8,1],[8,2,8,3],[8,4,8,5],[8,6,8,7],[8,8,8,9],[11,0,11,1],[11,2,11,3],[11,4,11,5],[11,6,11,7],[11,8,11,9],[12,0,12,1],[12,2,12,3],[12,4,12,5],[12,6,12,7],[12,8,12,9],[15,0,15,1],[15,2,15,3],[15,4,15,5],[15,6,15,7],[15,8,15,9],[16,0,16,9],[13,0,13,1],[13,2,13,3],[13,4,13,5],[13,6,13,7],[13,8,13,9],[14,0,14,3],[14,4,14,5],[14,6,14,7],[14,8,14,9],[17,0,17,1],[17,2,17,3],[17,4,17,5],[17,6,17,7],[17,8,17,9],[18,0,18,1],[18,2,18,3],[18,4,18,5],[18,6,18,7],[18,8,18,9],[19,0,19,1],[19,2,19,3],[19,4,19,5],[19,6,19,7],[19,8,19,9],[20,0,20,1],[20,2,20,3],[20,4,20,5],[20,6,20,7],[20,8,20,9],[21,0,21,1],[21,2,21,3],[21,4,21,5],[21,6,21,7],[21,8,21,9],[22,0,22,3],[22,4,22,5],[22,6,22,7],[22,8,22,9],[31,0,31,3],[31,7,31,8],[32,0,32,3],[32,4,32,5],[32,7,32,8],[33,0,33,3],[33,4,33,5],[33,7,33,8],[23,0,23,3],[23,4,23,5],[23,6,23,7],[23,8,23,9],[25,0,25,9],[26,0,28,9],[36,0,36,3],[36,4,36,5],[36,7,36,8],[37,0,37,3],[37,4,37,5],[37,7,37,8],[34,0,34,3],[34,4,34,5],[34,7,34,8],[35,0,35,3],[35,4,35,5],[35,7,35,8],[47,0,47,1],[49,0,49,9],[50,0,51,9],[38,0,38,9],[39,0,40,9],[43,0,43,1],[43,2,43,9],[45,0,45,1],[46,0,46,1]]}
[{"$f":"+'Cover Page'!C39","v":2025}," Annual Reporting Performance Form 1"]
[]
[{"$f":"+'Cover Page'!B31","v":"EPR/NP3739PD/V010"},null,null,null,null,"Operator: ",{"$f":"+'Cover Page'!B37","v":"CSWDC"}]
["Facility:",{"$f":"+'Cover Page'!B33:I33","v":"The CSWDC Waste to Energy Plant"},null,null,null,"Form:","Performance 1"]
[]
["Reporting  Period from: ",null,null,"2025-01-01",null,"to:","2025-12-31"]
[]
[{"$f":"+A1","v":2025},"Annual Reporting of Waste Disposal and Recovery"]
["Waste Description",null,"Disposal Route(s)",null,"Disposal Tonnes",null,"Recovery Tonnes",null,"% / tonne of waste incinerated"]
["1) Hazardous Wastes"]
["APC Residues",null,"Pretreated and landfill",null,{"$f":"'Operational Data'!G35","v":12510},null,null,null,{"$f":"IF((E11+G11)>0,(E11+G11)/'Operational Data'!$G$24, \"-\")","v":4.3088530776852797E-2}]
[null,null,null,null,null,null,null,null,{"$f":"IF((E12+G12)>0,(E12+G12)/'Operational Data'!$G$24, \"-\")","v":"-"}]
[null,null,null,null,null,null,null,null,{"$f":"IF((E13+G13)>0,(E13+G13)/'Operational Data'!$G$24, \"-\")","v":"-"}]
[null,null,null,null,null,null,null,null,{"$f":"IF((E14+G14)>0,(E14+G14)/'Operational Data'!$G$24, \"-\")","v":"-"}]
["Total Hazardous Waste",null,null,null,{"$f":"SUM(E11:F14)","v":12510},null,{"$f":"SUM(G11:H14)","v":0},null,{"$f":"IF((E15+G15)>0,(E15+G15)/'Operational Data'!$G$24, \"-\")","v":4.3088530776852797E-2}]
[]
["2) Non-Hazardous Wastes"]
["IBA",null,"Recovery",null,{"$f":"'Operational Data'!G36","v":43492},null,null,null,{"$f":"IF((E18+G18)>0,(E18+G18)/'Operational Data'!$G$24, \"-\")","v":0.14980066990782429}]
["Ferrous Metal",null,"Recovery",null,{"$f":"'Operational Data'!G37","v":4917},null,null,null,{"$f":"IF((E19+G19)>0,(E19+G19)/'Operational Data'!$G$24, \"-\")","v":1.693575586169346E-2}]
["Process Water",null,"Disposal to foul sewer",null,107396,null,null,null,{"$f":"IF((E20+G20)>0,(E20+G20)/'Operational Data'!$G$24, \"-\")","v":0.36990694255082995}]
[null,null,null,null,null,null,null,null,{"$f":"IF((E21+G21)>0,(E21+G21)/'Operational Data'!$G$24, \"-\")","v":"-"}]
[null,null,null,null,null,null,null,null,{"$f":"IF((E22+G22)>0,(E22+G22)/'Operational Data'!$G$24, \"-\")","v":"-"}]
["Total Non-Hazardous Waste",null,null,null,{"$f":"SUM(E18:F22)","v":155805},null,{"$f":"SUM(G18:H22)","v":0},null,{"$f":"IF((E23+G23)>0,(E23+G23)/'Operational Data'!$G$24, \"-\")","v":0.53664336832034765}]
["TOTAL WASTE",null,null,null,{"$f":"+E23+E15","v":168315},null,{"$f":"+G23+G15","v":0},null,{"$f":"IF((E24+G24)>0,(E24+G24)/'Operational Data'!$G$24, \"-\")","v":0.57973189909720046}]
[]
["Operator’s comments :"]
[]
[]
[]
[]
[{"$f":"+A1","v":2025},"Annual Reporting of Water and Other Raw Material Usage"]
["Raw Material",null,null,null,"Usage",null,"Unit","Specific Usage",null,"Unit"]
["Mains Water",null,null,null,{"$f":"+'Operational Data'!G43/1000","v":244964.315},null,"m3",{"$f":"IF(E33>0,E33/'Operational Data'!$G$24,\"-\")","v":0.84373720432519284},null,"m3/te"]
["Total Water",null,null,null,{"$f":"+'Operational Data'!G44+'Operational Data'!G43/1000","v":102762964.315},null,"m3",{"$f":"IF(E34>0,E34/'Operational Data'!$G$24,\"-\")","v":353.94925264648305},null,"m3/te"]
["Urea / Ammonia",null,null,null,{"$f":"+'Operational Data'!G45","v":1427000},null,"kg",{"$f":"IF(E35>0,E35/'Operational Data'!$G$24,\"-\")","v":4.9150546297816895},null,"kg/te"]
["Activated Carbon",null,null,null,{"$f":"+'Operational Data'!G47","v":90560},null,"kg",{"$f":"IF(E36>0,E36/'Operational Data'!$G$24,\"-\")","v":0.31191825316960742},null,"kg/te"]
["Lime / hydrated lime / Sodium Bicarb.",null,null,null,{"$f":"+'Operational Data'!G48","v":5883380},null,"kg",{"$f":"IF(E37>0,E37/'Operational Data'!$G$24,\"-\")","v":20.26428458848283},null,"kg/te"]
[]
["Operator’s comments :"]
[]
[]
[]
[{"$f":"+A31","v":2025},"Annual Reporting of other performance indicators "]
["Parameter",null,"Results by Line"]
[null,null,"A1","A2","A3","A4","A5",null,"Turbine 1","Turbine 2"]
["Operating hours for the year, hours",null,{"$f":"'Operational Data'!G54","v":7490},{"$f":"'Operational Data'!G55","v":7918},{"$f":"'Operational Data'!G56","v":7728},null,null,null,{"$f":"'Operational Data'!G59","v":665.3},{"$f":"'Operational Data'!G60","v":803.1}]
["Number of periods of abnormal operation, qty.",null,{"$f":"'Operational Data'!C63","v":1},0,0]
["Cumulative hours of abnormal operation for this year, hours",null,{"$f":"'Operational Data'!C64","v":0.5},0,0]
[]
["Operator’s comments :"]
[]
[]
[]
["Signed: ",null,null,null,null,null,"Date:","2026-02-10"]

{"sheet":"Energy Form 1","index":5,"n_rows":29,"n_cols":8,"rows_kept":29,"cut":false,"hidden":false,"merged":[[2,6,2,8],[4,1,4,4],[6,3,6,4],[6,6,6,7],[8,0,8,2],[8,3,8,4],[8,6,8,8],[9,0,9,2],[9,3,9,4],[9,6,9,8],[10,0,10,2],[10,3,10,4],[10,6,10,8],[11,0,11,2],[11,3,11,4],[11,6,11,8],[12,0,12,2],[12,3,12,4],[12,6,12,8],[13,0,13,2],[13,3,13,4],[13,6,13,8],[14,0,14,2],[14,3,14,4],[14,6,14,8],[15,0,15,2],[15,3,15,4],[15,6,15,8],[17,0,17,8],[18,0,24,8]]}
[{"$f":"+'Cover Page'!C39","v":2025}," Annual Reporting of Energy Usage/Export"]
[]
[{"$f":"+'Cover Page'!B31","v":"EPR/NP3739PD/V010"},null,null,null,null,"Operator: ",{"$f":"+'Cover Page'!B37","v":"CSWDC"}]
[]
["Facility:",{"$f":"+'Cover Page'!B33:I33","v":"The CSWDC Waste to Energy Plant"},null,null,null,"Form:","Energy 1"]
[]
["Reporting  Period from: ",null,null,{"$f":"+'Perf. Form 1'!D6:E6","v":"2025-01-01"},null,"to:",{"$f":"+'Perf. Form 1'!G6:H6","v":"2025-12-31"}]
[]
["Energy Source",null,null,"Energy Usage",null,"Unit","Specific Usage (KWh/tonne incinerated"]
["Electricity Produced",null,null,{"$f":"+'Operational Data'!G27","v":97341.37},null,"MWh",{"$f":"+'Operational Data'!H27","v":335.2755089613122}]
["Electricity Imported   ",null,null,{"$f":"+'Operational Data'!G29","v":1822},null,"MWh",{"$f":"+'Operational Data'!H29","v":6.2755637949980647}]
["Electricity Exported",null,null,{"$f":"+'Operational Data'!G28","v":55716},null,"MWh",{"$f":"+'Operational Data'!H28","v":191.90412316252039}]
["Gas Oil",null,null,null,null,"tonnes"]
["Steam/hot water exported",null,null,{"$f":"+'Operational Data'!G31","v":12324},null,"GWh",{"$f":"+'Operational Data'!H31","v":42.447885954750909}]
[]
[]
[]
["Operator’s comments :"]
["Please note that the main turbine 'G1' was off line for a proportion of the year due to a catastrophic failure in 2023, therefore the amounts of power produced and exported will be much lower that would normally be expected for the plant capacity. G1 back in service April 2025 and was running at a reduced capacity. G2 was off during December 2025 for a major service."]
[]
[]
[]
[]
[]
[]
[]
[]
[]
["Signed: ",null,null,null,null,null,"Date:","2026-02-10"]

{"sheet":"Permit Compliance","index":6,"n_rows":30,"n_cols":12,"rows_kept":30,"cut":false,"hidden":false,"merged":[[35,4,35,8],[9,0,9,1],[9,2,9,4],[9,5,9,8],[10,0,10,1],[10,2,10,4],[10,5,10,8],[11,0,11,1],[11,2,11,4],[11,5,11,8],[12,0,12,1],[12,2,12,4],[12,5,12,8],[13,0,13,1],[13,2,13,4],[13,5,13,8],[7,0,7,1],[7,2,7,8],[8,0,8,1],[8,2,8,4],[8,5,8,8],[14,5,14,8],[15,0,15,1],[16,2,16,4],[16,5,16,8],[15,2,15,4],[15,5,15,8],[16,0,16,1],[34,1,34,3],[34,4,34,6],[34,7,34,9],[31,1,31,3],[31,4,31,6],[31,7,31,9],[32,1,32,3],[32,4,32,6],[32,7,32,9],[8,11,20,11],[28,0,28,10],[18,0,18,10],[33,1,33,3],[33,4,33,6],[33,7,33,9],[29,1,29,3],[29,4,29,6],[29,7,29,9],[30,1,30,3],[30,4,30,6],[30,7,30,9],[22,1,22,2],[23,1,23,2],[14,0,14,1],[14,2,14,4],[24,1,24,2],[25,1,25,2],[26,0,26,8],[19,7,19,8],[19,1,19,2],[19,3,19,5],[21,3,21,5],[22,3,22,5],[23,3,23,5],[24,3,24,5],[25,3,25,5],[21,1,21,2]]}
[{"$f":"+'Cover Page'!$B$29","v":"Annual Performance Report 2025"},null,null,null,{"$f":"+'Cover Page'!$B$33","v":"The CSWDC Waste to Energy Plant"}]
[]
["Summary of Permit Compliance"]
[]
["Compliance with permit limits for continuously monitored pollutants"]
[]
["The plant met its emission limits as shown in the table below:"]
["Substance",null,"Percentage time compliant during operationNote 1",null,null,null,null,null,null,null,null,"Notes:"]
[null,null,"Half-hourly limit",null,null,"Daily limit",null,null,null,null,null,"Note 1: Please report to 2 decimal places, i.e. xx.xx%\n\nNote 2: Please enter into this table any permit non-compliances that the EA has given a CCS score for. Please also enter any other non-compliances which you have notified to the EA (e.g. ELV exceedances) but which have not yet been assessed by the EA. There is no need to enter any notifications which were subsequently assessed by the EA not to be permit breaches.  \n\nNote 3: Please enter information here (rather than just referencing the notifications that were sent to the EA) including where relevant the incineration line reference, pollutant and value of the measured result for any ELV exceedances.   \n\n"]
["Particulates",null,1,null,null,1]
["Oxides of nitrogen",null,1,null,null,1]
["Sulphur dioxide",null,1,null,null,1]
["Carbon monoxide",null,"100.00% 95% of 10-min averages",null,null,1]
["Total organic carbon",null,1,null,null,1]
["Hydrogen chloride",null,1,null,null,1]
["Hydrogen fluoride",null,1,null,null,1]
["Ammonia",null,1,null,null,1]
["."]
["Summary of non-compliances under the permit Note 2"]
["Date","Summary of non-compliance Note 3",null,"Reason ",null,null,"Measures taken to prevent reoccurrence","CCS score if applicable*"]
[null,null,null,null,null,null,null,"Impact","Root cause"]
[]
[]
[]
[]
[]
["*If the Environment Agency (EA) has given a Compliance Classification Scheme (CCS) score due to a permit non-compliance it should be entered here (CCS4 = No impact; CCS3 = Minor impact; CCS2 = Significant impact; CCS1 = Major impact). If the EA has not yet assessed a non-compliance which you have notified to them, these columns should be left blank. Enter N/A if no score was given for the root cause.  "]
[]
["Summary of any complaints received and actions to taken to resolve them."]
["Date","Summary of complaint [including Line/Reference]",null,null,"Reason (including whether substantiated by the operator or the EA)",null,null,"Measures taken to prevent reoccurrence"]

{"sheet":"Improvements","index":7,"n_rows":38,"n_cols":5,"rows_kept":38,"cut":false,"hidden":false,"merged":[[37,0,37,8],[38,0,47,8],[4,0,4,8],[5,0,13,8],[15,0,15,8],[16,0,24,8],[26,0,26,8],[27,0,35,8]]}
[{"$f":"+'Cover Page'!$B$29","v":"Annual Performance Report 2025"},null,null,null,{"$f":"+'Cover Page'!$B$33","v":"The CSWDC Waste to Energy Plant"}]
[]
["Summary of Plant Improvements"]
[]
["Summary of any efficiency improvements that have been completed within the year."]
["On-going review and assessment of the abatement dosing chemicals to ensure dosing of consumables is balanced with emissions levels"]
[]
[]
[]
[]
[]
[]
[]
[]
[]
["Summary of any permit improvement conditions that have been completed within the year and the resulting environmental benefits."]
["Completed IC5 and Submitted IC6"]
[]
[]
[]
[]
[]
[]
[]
[]
[]
["Summary of any changes to the plant or operating techniques which required a variation to the permit and a summary of the resulting environmental impact."]
["N/A"]
[]
[]
[]
[]
[]
[]
[]
[]
[]
["Summary of any other improvements made to the plant or planned to be made and a summary of the resulting environmental benefits."]

{"sheet":"Public Liasion","index":8,"n_rows":33,"n_cols":5,"rows_kept":33,"cut":false,"hidden":false,"merged":[[20,0,20,1],[20,2,20,8],[5,0,5,1],[5,2,5,8],[6,0,7,1],[6,2,7,8],[8,0,9,1],[8,2,9,8],[10,0,11,1],[10,2,11,8],[16,0,17,1],[16,2,17,8],[19,0,19,8],[12,0,13,1],[14,0,15,1],[14,2,15,8],[21,0,22,1],[21,2,22,8],[23,0,24,1],[23,2,24,8],[25,0,26,1],[25,2,26,8],[27,0,28,1],[27,2,28,8],[29,0,30,1],[29,2,30,8],[32,0,32,8]]}
[{"$f":"+'Cover Page'!$B$29","v":"Annual Performance Report 2025"},null,null,null,{"$f":"+'Cover Page'!$B$33","v":"The CSWDC Waste to Energy Plant"}]
[]
["Details of Public & Stakeholder Liaison"]
[]
["Summary of events held during the reporting year."]
["Date",null,"Description"]
["2025-03-18",null,"Stratford District Council - site visit and plant tour"]
[]
["15/05/2025  19/06/2025  19/08/2025  10/09/2055\n",null,"Probus - site visits and plant tours"]
[]
["21/5/026",null,"Home school - site visit and plant tour"]
[]
["2025-06-27",null,"Whittle Promary School -site visit and limited tour"]
[]
["2025-07-10",null,"Coventry University - site visit and plant tour"]
[]
["2025-11-12",null,"Leicestershire County Council - site visit and plant tour"]
[]
[]
["List of events planned for next year"]
["Date",null,"Description"]
["2026-02-24",null,"Statford District Council - site visit and plant tour"]
[]
[]
[]
[]
[]
[]
[]
[]
[]
[]
["If you wish to be involved in the public liaison programme, please contact _________________"]

{"sheet":"CO2 N2O","index":9,"n_rows":25,"n_cols":12,"rows_kept":25,"cut":false,"hidden":false,"merged":[[6,5,9,5],[22,2,22,3],[25,1,25,3],[16,2,16,3],[4,0,4,3],[9,0,9,3],[17,0,17,3],[13,0,13,3],[12,0,12,1],[8,2,8,3],[11,2,11,3],[19,2,19,3]]}
[{"$f":"+'Cover Page'!$B$29","v":"Annual Performance Report 2025"},null,{"$f":"+'Cover Page'!$B$33","v":"The CSWDC Waste to Energy Plant"}]
[]
["Carbon dioxide emissions and biogenic content of waste inputs",null,null,null,null,"Notes:"]
[]
["Carbon dioxide emissions (all types of plant)"]
[null,"Annual mass of carbon dioxide released","tonnes ",270629.3]
[null,"Annual mass of carbon dioxide released per tonne of waste burned","t CO2 / t waste ",{"$f":"D6/'Operational Data'!G24","v":0.93213580512934668},null,"Note 1: All permits require operators to continuously monitor CO2 to EN14181 and flow to BS EN 16911-2 (unless otherwise agreed in writing). Operators must therefore use the results from these instruments to calculate their annual CO2 emissions. Where an operator does not have a flow meter calibrated to BS EN 16911-2, the averaged flow measurement from that year's periodic monitoring can be used instead. If the plant does not have calibrated CO2 CEMS, a suitably justified emissions factor can be used. \n\n"]
[null,"Annual mass of carbon dioxide released per MWh of energy exported","t CO2 / MWh export ",{"$f":"D6/'Operational Data'!G28","v":4.8572995189891595}]
[null,"Description of how annual carbon dioxide mass emission has been calculated. \nSee Note 1","CEMs data used to record CO2 and flow with running hours to produce a mass value for the year"]
["Nitrous oxide emissions (only plants which use ammonia or urea to abate NOx emissions)"]
[null,"Annual mass emissions of nitrous oxide","tonnes N2O",6.1]
[null,"Description of how annual nitrous oxide mass emission has been calculated\nSee Note 2","CEMs data used to record N2O and flow with running hours to produce a mass value for the year",null,null,"Note 2: All permits require operators to continuously monitor N2O to EN14181 and flow to BS EN 16911-2, unless otherwise agreed in writing. Operators must therefore use the results from these instruments to calculate their annual N2O emissions. Where an operator does not have a flow meter calibrated to BS EN 16911-2, the averaged flow measurement from periodic monitoring can be used instead. If the plant does not have calibrated N2O CEMS, data from periodic monitoring or a suitably justified emissions factor can be used instead."]
["Total annual carbon dioxide + nitrous oxide emissions. \nSee Note 3. ",null,"tonnes CO2e",{"$f":"(D11*265)+D6","v":272245.8},null,"Note 3: Total annual carbon dioxide and nitrous oxide emissions reported as carbon dioxide equivalent where 1 tonne nitrous oxide is equivalent to 265 tonnes carbon dioxide."]
["Biogenic CO2 emissions (See Note 4)",null,null,null,null,"Note 4: Only plants combusting residual municipal waste, refuse derived fuel or solid recovered fuel need complete this section. "]
[null,"Percentage of total carbon dioxide emissions arising from biogenic waste","%",0.59]
[null,"No. of measurements undertaken","Number",12]
[null,"Description of how percentage biogenic carbon dioxide emissions have been measured or calculated.\nSee Note 5","C14 sampling on common exit duct",null,null,"Note 5: The results from C14 sampling should be used if this is carried out at the plant (either via an installed sampler or from spot samples).  \nOtherwise, as an approximation (and in lieu of any more accurate metrics which may be developed in future), the measured or estimated biogenic fraction by net calorific value (see Note 6) can be assumed to be the same as the biogenic CO2 fraction of the total CO2 emissions from the plant. "]
["Biogenic fraction of waste feedstock (See Note 4)"]
[null,"Yearly average biogenic percentage of the waste by net calorific value (NCV)","%",0.54]
[null,"Description of how biogenic percentage (by NCV) has been calculated or estimated. \nSee Note 6","Using the Fichtner calculation/formula",null,null,"Note 6: If C14 sampling is carried out at the plant, the methodology set out in the embedded document entitled \"Renewable Energy Association Energy Content of Fuels - Description of Method\" embedded below can be used to calculate the biogenic percentage by net calorific value. Otherwise, data from waste sampling or BIOMA software can be used; or if none of these are available, an estimated figure with justification or a figure assumed on the basis of up-to-date industry data can be used. ",null,null,null,{"$f":"(0.39*D15)","v":0.2301}]
[null,"Yearly average biogenic percentage of the waste by mass","%",0.59,null,null,null,null,null,{"$f":"0.47-0.08*D15","v":0.42279999999999995},null,{"$f":"J20/J21","v":0.54422894985808901}]
[null,"If waste sampling undertaken, no. of samples used to ascertain average biogenic percentages above","Number",12]
[null,"Description of how biogenic percentage (by mass) has been calculated or estimated. \nSee Note 7","Waste sampling data",null,null,"Note 7: Where available, data from waste sampling should be used; otherwise, an estimated figure with justification can be used, or a figure assumed on the basis of up-to-date industry data. "]
[]
[null,"Comments:"]

{"sheet":"Residues","index":10,"n_rows":61,"n_cols":9,"rows_kept":61,"cut":false,"hidden":false,"merged":[[4,0,25,6],[4,8,13,11],[41,0,42,1],[41,2,42,6],[43,0,44,1],[43,2,44,6],[37,0,37,6],[38,0,38,1],[38,2,38,6],[30,0,31,6],[32,0,33,6],[34,0,35,6],[39,0,40,1],[39,2,40,6],[45,0,46,1],[45,2,46,6],[47,0,48,1],[47,2,48,6],[56,3,56,4],[52,2,53,2],[53,3,53,4],[53,5,53,6],[52,3,52,6],[51,0,51,6],[61,0,66,6],[57,3,57,4],[60,0,60,6],[52,0,53,1],[54,0,54,1],[55,0,55,1],[56,0,56,1],[57,0,57,1],[54,3,54,4],[55,3,55,4],[54,5,54,6],[55,5,55,6],[56,5,56,6],[57,5,57,6],[58,0,58,6]]}
[{"$f":"+'Cover Page'!$B$29","v":"Annual Performance Report 2025"},null,null,null,{"$f":"+'Cover Page'!$B$33","v":"The CSWDC Waste to Energy Plant"}]
[]
["Summary of Residue Handling for the reporting year"]
[]
["Incinerator bottom ash is separated and stored on site for collection by aggregate HGVs, which as loaded by crane before transporting the ash to a processing site which is operated by a third party. All metals metals are left mixed with the IBA and removed from site for processing by a third party (Johnsons Aggregates, Derby), and the metal is now separated by them on their premises.\n\nAPCr is conveyed by the FGT system into storage silos. From there it is deposited into tankers (Lomas) for transortation to a third party processor (Augean).",null,null,null,null,null,null,null,"Include in here a summary of residue handling regimes and destinations "]
[]
[]
[]
[]
[]
[]
[]
[]
[]
[]
[]
[]
[]
[]
[]
[]
[]
[]
[]
[]
[]
[]
["Residue Quality Monitoring Requirements"]
[]
["Summary of monitoring undertaken and compliance"]
["Monthly IBA samples were collected and analysed by Element (January - August inc). From September onwards two samples per month were taken by Element and sent to WRC for analysis "]
[]
["All results winth the limits. LOI analysis is undertaken quarterly"]
[]
[]
[]
[]
["Commentary on any specific events"]
["Date & Event",null,"Description"]
[]
[]
[]
[]
[]
[]
[]
[]
[]
[]
[]
[]
["Residue Quality Monitoring Results"]
["Parameter (unit) ",null,"Limit*","Normal Operation "]
[null,null,null,"Bottom ash  ",null,"APC Residues"]
["Loss on Ignition (average %)",null,"<5%"]
["Total Organic Carbon (average %)",null,"<3%","N/A"]
["No. of Assessments Undertaken",null,"---","4 per unit"]
["No. of Hazardous Results",null,"---",0]
["* The permit will specify a limit of either 5% loss on ignition or 3% total organic carbon. If both are measured anyway, please enter the results here, even where the limit does not apply. "]
[]
["Comments :"]

{"sheet":"Water","index":11,"n_rows":24,"n_cols":9,"rows_kept":24,"cut":false,"hidden":false,"merged":[[5,0,6,8],[7,0,8,8],[9,0,10,8],[12,0,12,8],[13,0,13,1],[13,2,13,8],[21,0,21,8],[22,0,22,2],[22,3,22,4],[14,0,15,1],[14,2,15,8],[16,0,17,1],[16,2,17,8],[18,0,19,1],[18,2,19,8],[23,0,23,2],[23,3,23,4],[24,0,24,2],[24,3,24,4],[25,0,25,2],[25,3,25,4],[29,0,29,2],[29,3,29,4],[26,0,26,2],[26,3,26,4],[27,0,27,2],[27,3,27,4],[28,0,28,2],[28,3,28,4]]}
[{"$f":"+'Cover Page'!$B$29","v":"Annual Performance Report 2025"},null,null,null,{"$f":"+'Cover Page'!$B$33","v":"The CSWDC Waste to Energy Plant"}]
[]
["Emissions to Water"]
[]
["Summary of monitoring undertaken and compliance"]
["Weekly ph measurement taken of ash quench effluent before dispsoal to sewer by water treament contractors"]
[]
["Effluent qualities monitored by STW"]
[]
[]
[]
[]
["Commentary on any specific events"]
["Date & Event",null,"Description"]
[]
[]
[]
[]
[]
[]
[]
["Emissions to Water / Sewer"]
["Parameter",null,null,"Monitoring Frequency",null,"Limit","Target","Max.","Average"]
["PH",null,null,"Weekly",null,12,9,8.56,7.78]

{"sheet":"Air (periodic)","index":12,"n_rows":39,"n_cols":11,"rows_kept":39,"cut":false,"hidden":false,"merged":[[5,10,8,13],[9,10,11,13],[8,0,8,9],[5,0,6,9],[11,0,11,1],[12,0,12,1],[11,3,11,4],[12,3,12,4],[9,0,10,1],[9,5,9,9],[9,3,10,4],[9,2,10,2],[16,0,16,1],[17,0,17,1],[18,0,18,1],[13,0,13,1],[14,0,14,1],[15,0,15,1],[39,0,40,9],[25,0,25,1],[26,0,26,1],[22,0,22,1],[23,0,23,1],[37,0,37,1],[27,0,27,1],[28,0,28,1],[29,0,29,1],[30,0,30,1],[31,0,31,1],[32,0,32,1],[37,3,37,4],[29,3,29,4],[30,3,30,4],[36,3,36,4],[38,0,38,9],[19,0,19,1],[20,0,20,1],[21,0,21,1],[34,3,34,4],[35,3,35,4],[33,0,33,1],[34,0,34,1],[35,0,35,1],[36,0,36,1],[24,0,24,1],[32,3,32,4],[27,3,27,4],[33,3,33,4],[19,3,19,4],[20,3,20,4],[21,3,21,4],[22,3,22,4],[23,3,23,4],[24,3,24,4],[31,3,31,4],[25,3,25,4],[26,3,26,4],[28,3,28,4],[13,10,14,12],[15,10,16,10],[15,11,16,11],[15,12,16,12],[18,3,18,4],[13,3,13,4],[14,3,14,4],[15,3,15,4],[16,3,16,4],[17,3,17,4]]}
[{"$f":"+'Cover Page'!$B$29","v":"Annual Performance Report 2025"},null,null,null,{"$f":"+'Cover Page'!$B$33","v":"The CSWDC Waste to Energy Plant"}]
[]
["Emissions to Air (periodically monitored)"]
[]
["Summary of monitoring undertaken, standards used and compliance",null,null,null,null,null,null,null,null,null,"Notes:"]
[null,null,null,null,null,null,null,null,null,null,"Template may require adjustment for any bespoke monitoring requirements of permit - please also check that all default ELV values, reference periods and the stated oxygen reference value match those for your plant, and edit if necessary!"]
[]
[]
["Results of emissions to air that are periodically monitored - oxygen reference 11% "]
["Substance",null,"Ref. Period","Emission Limit Value",null,"Average",null,null,null,null,"User to add additional tables as necessary, depending on whether quarterly or bi-annual reporting is required for the compliance year"]
[null,null,null,null,null,"A1","A2","A3","A4","A5"]
["Hydrogen fluoride",null,"1 hr","1 mg/m3",null,5.8999999999999997E-2,5.5000000000000007E-2,6.3500000000000001E-2]
["Cd and Tl and their compounds",null,"0.5-8hrs","0.02 mg/m3",null,2.1000000000000003E-3,1.9E-3,2E-3]
["Hg and its compounds",null,"0.5-8hrs","0.02 mg/m3",null,4.4000000000000002E-4,3.3999999999999998E-3,6.3000000000000003E-4]
["Sb, As, Pb, Cr, Co, Cu, Mn, Ni, V and their compounds",null,"0.5-8hrs","0.3 mg/m3",null,1.8000000000000002E-2,4.3499999999999997E-2,1.4E-2]
["Dioxins & Furans (I-TEQ)",null,"6-8hrs","0.06 ng/m3",null,4.7000000000000004E-4,7.3000000000000001E-3,1.32E-3]
["PCBs (WHO-TEQ Humans / Mammals)",null,"6-8hrs","None set ng/m3",null,1.036E-4,1.7585000000000001E-3,1.3674999999999999E-4]
["PCBs (WHO-TEQ Fish)",null,"6-8hrs","None set ng/m3",null,6.5000000000000004E-6,8.7499999999999999E-5,2.5999999999999997E-6]
["PCBs (WHO-TEQ Birds)",null,"6-8hrs","None set ng/m3",null,3.9075000000000004E-4,3.1679999999999998E-3,4.104E-4]
["Dioxins & Furans (WHO-TEQ Humans / Mammals)",null,"6-8hrs","None set ng/m3",null,4.325E-4,6.9000000000000008E-3,1.6250000000000001E-3]
["Dioxins & Furans (WHO-TEQ Fish)",null,"6-8hrs","None set ng/m3",null,3.9499999999999995E-4,7.7000000000000002E-3,1.6750000000000001E-3]
["Dioxins & Furans (WHO-TEQ Birds)",null,"6-8hrs","None set ng/m3",null,1.7275000000000001E-3,1.38E-2,3.8250000000000003E-3]
["Anthanthrene",null,"6-8hrs","None set µg/m3",null,4.0499999999999998E-3,1.6000000000000001E-3,2E-3]
["Benzo(a)anthracene",null,"6-8hrs","None set µg/m3",null,2.0649999999999998E-2,1.35E-2,2.5999999999999999E-2]
["Benzo(a)pyrene",null,"6-8hrs","None set µg/m3",null,3.3499999999999997E-3,2.8E-3,3.3999999999999998E-3]
["Benzo(b)fluoranthene",null,"6-8hrs","None set µg/m3",null,8.150000000000001E-3,1.0149999999999999E-2,6.4000000000000003E-3]
["Benzo(b)naptho(2,1-d) thiophene",null,"6-8hrs","None set µg/m3",null,2.69E-2,5.1000000000000004E-3,7.4999999999999997E-3]
["Benzo(c)phenanthrene",null,"6-8hrs","None set µg/m3",null,7.2499999999999995E-3,6.1999999999999998E-3,7.3000000000000001E-3]
["Benzo(ghi)perylene",null,"6-8hrs","None set µg/m3",null,1.9499999999999999E-3,2.9499999999999999E-3,1.2E-2]
["Benzo(k)fluoranthene",null,"6-8hrs","None set µg/m3",null,3.7000000000000002E-3,2.7499999999999998E-3,3.5999999999999999E-3]
["Cholanthrene",null,"6-8hrs","None set µg/m3",null,1.7000000000000001E-3,1.6000000000000001E-3,1.8E-3]
["Chrysene",null,"6-8hrs","None set µg/m3",null,1.915E-2,6.8000000000000005E-3,1.2E-2]
["Cyclopenta(cd)pyrene",null,"6-8hrs","None set µg/m3",null,1.7000000000000001E-3,1.6000000000000001E-3,1.6000000000000001E-3]
["Dibenzo(ai)pyrene",null,"6-8hrs","None set µg/m3",null,1.7000000000000001E-3,1.6000000000000001E-3,1.6000000000000001E-3]
["Dibenzo(ah)anthracene",null,"6-8hrs","None set µg/m3",null,1.7000000000000001E-3,1.6000000000000001E-3,1.6000000000000001E-3]
["Fluoranthene",null,"6-8hrs","None set µg/m3",null,0.52044999999999997,0.38150000000000001,0.39950000000000002]
["Indeno(123-cd) pyrene",null,"6-8hrs","None set µg/m3",null,1.9E-3,2.3E-3,2.0999999999999999E-3]
["Naphthalene",null,"6-8hrs","None set µg/m3",null,0.2787,0.16399999999999998,0.41900000000000004]
["Comments :"]

{"sheet":"Air (CEMS)","index":13,"n_rows":29,"n_cols":14,"rows_kept":29,"cut":false,"hidden":false,"merged":[[14,13,15,13],[14,14,15,14],[14,15,15,15],[12,13,13,15],[27,0,27,12],[29,0,30,12],[13,0,14,0],[5,0,6,12],[7,0,8,12],[10,0,10,12],[11,0,12,0],[11,2,12,2],[11,1,12,1],[11,3,11,4],[11,5,11,6],[11,7,11,8],[11,9,11,10],[11,11,11,12]]}
[{"$f":"+'Cover Page'!$B$29","v":"Annual Performance Report 2025"},null,null,null,null,null,null,null,{"$f":"+'Cover Page'!$B$33","v":"The CSWDC Waste to Energy Plant"}]
[]
["Emissions to Air (continuously monitored)"]
[null,null,null,null,null,null,null,null,null,null,null,null,null,"Notes:"]
["Summary of monitoring undertaken, standards used and compliance",null,null,null,null,null,null,null,null,null,null,null,null,"Template may require adjustment for any bespoke monitoring requirements of permit"]
[null,null,null,null,null,null,null,null,null,null,null,null,null,"Please check that all default ELV values match those for your plant and edit if necessary!"]
[null,null,null,null,null,null,null,null,null,null,null,null,null,"Report to 1 decimal place"]
[]
[]
[]
["Results of emissions to air that are continuously monitored (maximum and average values for each line) - oxygen reference 11%"]
["Substance","Reference Period","Emission Limit Value","A1",null,"A2",null,"A3",null,"A4",null,"A5"]
[null,null,null,"Max.","Avg.","Max.","Avg.","Max.","Avg.","Max.","Avg.","Max.","Avg."]
["Oxides of nitrogen","Daily mean","180 mg/m3 ",{"$f":"NOx!O19","v":178.49},{"$f":"NOx!N19","v":169.95250000000001},{"$f":"NOx!O34","v":178.05},{"$f":"NOx!N34","v":169.89416666666668},{"$f":"NOx!O49","v":176.54},{"$f":"NOx!N49","v":170.39833333333334}]
[null,"½ hourly mean","400 mg/m3 ",{"$f":"NOx!M19","v":342.28},{"$f":"NOx!L19","v":169.78916666666669},{"$f":"NOx!M34","v":337.7},{"$f":"NOx!L34","v":169.90416666666667},{"$f":"NOx!M49","v":320.27},{"$f":"NOx!L49","v":170.2833333333333}]
["Particulates","Daily mean","5 mg/m3",{"$f":"Particulates!O19","v":3.46},{"$f":"Particulates!N19","v":0.4933333333333334},{"$f":"Particulates!O34","v":2.57},{"$f":"Particulates!N34","v":0.6791666666666667},{"$f":"Particulates!O49","v":1.41},{"$f":"Particulates!N49","v":0.79416666666666658}]
[null,"½ hourly mean","30 mg/m3 ",{"$f":"Particulates!M19","v":30.87},{"$f":"Particulates!L19","v":0.48333333333333339},{"$f":"Particulates!M34","v":7.73},{"$f":"Particulates!L34","v":0.68166666666666675},{"$f":"Particulates!M49","v":3.41},{"$f":"Particulates!L49","v":0.79333333333333333}]
["Total Organic Carbon ","Daily mean","10 mg/m3 ",{"$f":"TOC!O19","v":2.06},{"$f":"TOC!N19","v":1.1608333333333334},{"$f":"TOC!O34","v":1.43},{"$f":"TOC!N34","v":0.52500000000000002},{"$f":"TOC!O49","v":1.57},{"$f":"TOC!N49","v":0.68416666666666659}]
[null,"½ hourly mean","20 mg/m3 ",{"$f":"TOC!M19","v":8.31},{"$f":"TOC!L19","v":1.1691666666666667},{"$f":"TOC!M34","v":8.86},{"$f":"TOC!L34","v":0.52583333333333337},{"$f":"TOC!M49","v":18.2},{"$f":"TOC!L49","v":0.69083333333333341}]
["Hydrogen chloride ","Daily mean","8 mg/m3 ",{"$f":"HCl!O19","v":2.95},{"$f":"HCl!N19","v":0.89499999999999991},{"$f":"HCl!O34","v":3.66},{"$f":"HCl!N34","v":0.59750000000000003},{"$f":"HCl!O49","v":2.91},{"$f":"HCl!N49","v":1.3049999999999999}]
[null,"½ hourly mean","60 mg/m3 ",{"$f":"HCl!M19","v":38.43},{"$f":"HCl!L19","v":0.89583333333333315},{"$f":"HCl!M34","v":6.8},{"$f":"HCl!L34","v":0.60000000000000009},{"$f":"HCl!M49","v":41.36},{"$f":"HCl!L49","v":1.31}]
["Sulphur dioxide","Daily mean","40 mg/m3 ",{"$f":"'SO2'!O19","v":37.65},{"$f":"'SO2'!N19","v":32.849166666666669},{"$f":"'SO2'!O34","v":38.78},{"$f":"'SO2'!N34","v":33.956666666666671},{"$f":"'SO2'!O49","v":37.01},{"$f":"'SO2'!N49","v":32.750833333333333}]
[null,"½ hourly mean","200 mg/m3 ",{"$f":"'SO2'!M19","v":146.99},{"$f":"'SO2'!L19","v":32.81583333333333},{"$f":"'SO2'!M34","v":134.71},{"$f":"'SO2'!L34","v":33.910000000000004},{"$f":"'SO2'!M49","v":155.88999999999999},{"$f":"'SO2'!L49","v":32.607500000000002}]
["Carbon monoxide ","Daily mean","50 mg/m3 ",{"$f":"'CO 95% 10 min'!Q22","v":45.73},{"$f":"'CO 95% 10 min'!P22","v":21.813333333333329},{"$f":"'CO 95% 10 min'!Q37","v":41.63},{"$f":"'CO 95% 10 min'!P37","v":20.7425},{"$f":"'CO 95% 10 min'!Q52","v":31.84},{"$f":"'CO 95% 10 min'!P52","v":19.15666666666667}]
[null,"½ hourly mean *","100 mg/m3 *"]
[null,"95%ile 10-min avg *","150 mg/m3 *",{"$f":"'CO 95% 10 min'!O22","v":436.13},{"$f":"'CO 95% 10 min'!M22","v":68.410000000000011},{"$f":"'CO 95% 10 min'!O37","v":439.32},{"$f":"'CO 95% 10 min'!M37","v":67.032499999999999},{"$f":"'CO 95% 10 min'!O52","v":747.2},{"$f":"'CO 95% 10 min'!M52","v":47.664166666666667}]
[" Ammonia","Daily mean","15 mg/m3 ",{"$f":"'NH3'!O19","v":12.87},{"$f":"'NH3'!N19","v":6.1608333333333336},{"$f":"'NH3'!O34","v":12.26},{"$f":"'NH3'!N34","v":5.5233333333333334},{"$f":"'NH3'!O49","v":11.56},{"$f":"'NH3'!N49","v":4.1866666666666665}]
["* = delete as appropriate, depending on whether your plant has half-hourly or 10-min CO ELVs\n"]
["Comments :"]

{"sheet":"HCl","index":14,"n_rows":79,"n_cols":17,"rows_kept":79,"cut":false,"hidden":false,"merged":[[12,16,15,18],[51,9,63,9],[66,9,78,9],[4,9,4,14],[4,1,4,3],[4,4,4,6],[48,0,51,6],[47,0,47,6],[6,9,18,9],[21,9,33,9],[36,9,48,9],[3,16,7,18],[9,16,11,18],[18,4,18,6]]}
[{"$f":"+'Cover Page'!$B$29","v":"Annual Performance Report 2025"},null,null,null,{"$f":"+'Cover Page'!$B$33","v":"The CSWDC Waste to Energy Plant"}]
[]
["Monitoring of Hydrogen Chloride emissions",null,null,"Whole Installation",null,null,"See  Notes in Cell Q3",null,null,{"$f":"+A3","v":"Monitoring of Hydrogen Chloride emissions"},null,null,null,"Per Combustion Line",null,null,"Notes:"]
[null,null,null,null,null,null,null,null,null,null,null,null,null,null,null,null,"User to add logic to complete Whole installation, Table A5:G18. From the data in Per Combustion Line, Table J6:O79, subject to No. of lines installed"]
[{"$f":"+'Cover Page'!C39","v":2025},"1/2 Hourly Reference Periods",null,null,"Daily Reference Periods"]
["mg/Nm3","1/2 hourly HCl ELV","Monthly mean of half-hourly averages","Highest half- hourly average","Daily HCl ELV","Monthly mean of  daily averages","Highest daily average",null,null,{"$f":"+A5","v":2025},"mg/Nm3","Monthly mean of half-hourly averages","Highest half- hourly average","Monthly mean of  daily averages","Highest daily average"]
["Jan",60,1.01,41.36,8,0.98,2.95,null,null,"A1","Jan",1.44,38.43,1.4,2.95]
["Feb",60,1.03,16.59,8,1.01,2,null,null,null,"Feb",1.46,4.32,1.48,2]
["Mar",60,1.3,10.81,8,1.29,3.15,null,null,null,"Mar",1.56,4.47,1.56,2.19,null,"Whole Installation table A5:G18:"]
["Apr",60,1.23,30.91,8,1.22,3.66,null,null,null,"Apr",0.26,2.2400000000000002,0.25,0.52,null,"Mean: for 1/2 hourly and daily periods calculate mean of values across all operational combustion lines for the month"]
["May",60,0.74,4.3099999999999996,8,0.75,2.33,null,null,null,"May",0.45,1.64,0.45,0.63]
["Jun",60,0.72,5.85,8,0.72,1.6,null,null,null,"Jun",0.69,5.85,0.7,1.25]
["Jul",60,0.81,4.6100000000000003,8,0.8,1.37,null,null,null,"Jul",0.91,4.6100000000000003,0.91,1.22,null,"Maximum: for 1/2 hourly and daily periods use the highest value across all operational combustion lines for the month"]
["Aug",60,1.1100000000000001,5.7,8,1.1000000000000001,2.4,null,null,null,"Aug",1.06,4.03,1.07,1.31]
["Sep",60,1.18,9.59,8,1.1599999999999999,2.09,null,null,null,"Sep",0.96,3.4,0.94,1.38]
["Oct",60,0.61,4.2,8,0.63,1.6,null,null,null,"Oct",0.48,1.03,0.5,0.73]
["Nov",60,0.7,4.5,8,0.68,1.81,null,null,null,"Nov",0.61,3.7,0.61,1.19]
["Dec",60,0.78,8.35,8,0.78,1.58,null,null,null,"Dec",0.87,8.35,0.87,1.58]
[null,null,null,null,null,null,null,null,null,null,"Annual",{"$f":"AVERAGE(L7:L18)","v":0.89583333333333315},{"$f":"MAX(M7:M18)","v":38.43},{"$f":"AVERAGE(N7:N18)","v":0.89499999999999991},{"$f":"MAX(O7:O18)","v":2.95}]
[]
[null,null,null,null,null,null,null,null,null,{"$f":"+A5","v":2025},"mg/Nm3","Monthly mean of half-hourly averages","Highest half- hourly average","Monthly mean of  daily averages","Highest daily average"]
[null,null,null,null,null,null,null,null,null,"A2","Jan",0.2,4.29,0.2,1.19]
[null,null,null,null,null,null,null,null,null,null,"Feb",0.68,2.5499999999999998,0.68,1.3]
[null,null,null,null,null,null,null,null,null,null,"Mar",1.55,6.8,1.54,3.15]
[null,null,null,null,null,null,null,null,null,null,"Apr",1.26,5.09,1.22,3.66]
[null,null,null,null,null,null,null,null,null,null,"May",0.17,1.27,0.17,0.56000000000000005]
[null,null,null,null,null,null,null,null,null,null,"Jun",0.42,1.55,0.42,0.65]
[null,null,null,null,null,null,null,null,null,null,"Jul",0.4,2.2200000000000002,0.4,0.71]
[null,null,null,null,null,null,null,null,null,null,"Aug",0.73,4.6100000000000003,0.72,2.4]
[null,null,null,null,null,null,null,null,null,null,"Sep",0.98,4.78,0.97,1.62]
[null,null,null,null,null,null,null,null,null,null,"Oct",-0.03,1.27,0.01,0.17]
[null,null,null,null,null,null,null,null,null,null,"Nov",0.36,2.82,0.36,0.88]
[null,null,null,null,null,null,null,null,null,null,"Dec",0.48,3.57,0.48,0.97]
[null,null,null,null,null,null,null,null,null,null,"Annual",{"$f":"AVERAGE(L22:L33)","v":0.60000000000000009},{"$f":"MAX(M22:M33)","v":6.8},{"$f":"AVERAGE(N22:N33)","v":0.59750000000000003},{"$f":"MAX(O22:O33)","v":3.66}]
[]
[null,null,null,null,null,null,null,null,null,{"$f":"+A5","v":2025},"mg/Nm3","Monthly mean of half-hourly averages","Highest half- hourly average","Monthly mean of  daily averages","Highest daily average"]
[null,null,null,null,null,null,null,null,null,"A3","Jan",1.49,41.36,1.51,2.91]
[null,null,null,null,null,null,null,null,null,null,"Feb",1.02,16.59,1.02,1.43]
[null,null,null,null,null,null,null,null,null,null,"Mar",0.79,10.81,0.79,1.75]
[null,null,null,null,null,null,null,null,null,null,"Apr",1.85,30.91,1.83,2.5]
[null,null,null,null,null,null,null,null,null,null,"May",1.61,4.3099999999999996,1.61,2.33]
[null,null,null,null,null,null,null,null,null,null,"Jun",1.21,4.29,1.2,1.6]
[null,null,null,null,null,null,null,null,null,null,"Jul",1.1200000000000001,4.1500000000000004,1.1100000000000001,1.37]
[null,null,null,null,null,null,null,null,null,null,"Aug",1.53,5.7,1.5,1.95]
[null,null,null,null,null,null,null,null,null,null,"Sep",1.55,9.59,1.52,2.09]
[null,null,null,null,null,null,null,null,null,null,"Oct",1.24,4.2,1.25,1.6]
[null,null,null,null,null,null,null,null,null,null,"Nov",1.31,4.5,1.32,1.81]
["Comments :",null,null,null,null,null,null,null,null,null,"Dec",1,2.58,1,1.17]
[null,null,null,null,null,null,null,null,null,null,"Annual",{"$f":"AVERAGE(L37:L48)","v":1.31},{"$f":"MAX(M37:M48)","v":41.36},{"$f":"AVERAGE(N37:N48)","v":1.3049999999999999},{"$f":"MAX(O37:O48)","v":2.91}]
[]
[null,null,null,null,null,null,null,null,null,{"$f":"+A5","v":2025},"mg/Nm3","Monthly mean of half-hourly averages","Highest half- hourly average","Monthly mean of  daily averages","Highest daily average"]
[null,null,null,null,null,null,null,null,null,"A4","Jan"]
[null,null,null,null,null,null,null,null,null,null,"Feb"]
[null,null,null,null,null,null,null,null,null,null,"Mar"]
[null,null,null,null,null,null,null,null,null,null,"Apr"]
[null,null,null,null,null,null,null,null,null,null,"May"]
[null,null,null,null,null,null,null,null,null,null,"Jun"]
[null,null,null,null,null,null,null,null,null,null,"Jul"]
[null,null,null,null,null,null,null,null,null,null,"Aug"]
[null,null,null,null,null,null,null,null,null,null,"Sep"]
[null,null,null,null,null,null,null,null,null,null,"Oct"]
[null,null,null,null,null,null,null,null,null,null,"Nov"]
[null,null,null,null,null,null,null,null,null,null,"Dec"]
[null,null,null,null,null,null,null,null,null,null,"Annual",{"$f":"AVERAGE(L52:L63)","v":{"$error":"#DIV/0!"}},{"$f":"MAX(M52:M63)","v":0},{"$f":"AVERAGE(N52:N63)","v":{"$error":"#DIV/0!"}},{"$f":"MAX(O52:O63)","v":0}]
[]
[null,null,null,null,null,null,null,null,null,{"$f":"+A5","v":2025},"mg/Nm3","Monthly mean of half-hourly averages","Highest half- hourly average","Monthly mean of  daily averages","Highest daily average"]
[null,null,null,null,null,null,null,null,null,"A5","Jan"]
[null,null,null,null,null,null,null,null,null,null,"Feb"]
[null,null,null,null,null,null,null,null,null,null,"Mar"]
[null,null,null,null,null,null,null,null,null,null,"Apr"]
[null,null,null,null,null,null,null,null,null,null,"May"]
[null,null,null,null,null,null,null,null,null,null,"Jun"]
[null,null,null,null,null,null,null,null,null,null,"Jul"]
[null,null,null,null,null,null,null,null,null,null,"Aug"]
[null,null,null,null,null,null,null,null,null,null,"Sep"]
[null,null,null,null,null,null,null,null,null,null,"Oct"]
[null,null,null,null,null,null,null,null,null,null,"Nov"]
[null,null,null,null,null,null,null,null,null,null,"Dec"]
[null,null,null,null,null,null,null,null,null,null,"Annual",{"$f":"AVERAGE(L67:L78)","v":{"$error":"#DIV/0!"}},{"$f":"MAX(M67:M78)","v":0},{"$f":"AVERAGE(N67:N78)","v":{"$error":"#DIV/0!"}},{"$f":"MAX(O67:O78)","v":0}]

{"sheet":"SO2","index":15,"n_rows":79,"n_cols":17,"rows_kept":79,"cut":false,"hidden":false,"merged":[[3,16,7,18],[9,16,11,18],[12,16,15,18],[66,9,78,9],[4,1,4,3],[4,4,4,6],[4,9,4,14],[6,9,18,9],[21,9,33,9],[36,9,48,9],[47,0,47,6],[48,0,51,6],[51,9,63,9],[18,4,18,6]]}
[{"$f":"+'Cover Page'!$B$29","v":"Annual Performance Report 2025"},null,null,null,{"$f":"+'Cover Page'!$B$33","v":"The CSWDC Waste to Energy Plant"}]
[]
["Monitoring of Sulphur dioxide emissions",null,null,"Whole Installation",null,null,"See  Notes in Cell Q3",null,null,{"$f":"+A3","v":"Monitoring of Sulphur dioxide emissions"},null,null,null,"Per Combustion Line",null,null,"Notes:"]
[null,null,null,null,null,null,null,null,null,null,null,null,null,null,null,null,"User to add logic to complete Whole installation, Table A5:G18. From the data in Per Combustion Line, Table J6:O79, subject to No. of lines installed"]
[{"$f":"+'Cover Page'!C39","v":2025},"1/2 Hourly Reference Periods",null,null,"Daily Reference Periods"]
["mg/Nm3","1/2 hourly SO2 ELV","Monthly mean of half-hourly averages","Highest half- hourly average","Daily SO2 ELV","Monthly mean of  daily averages","Highest daily average",null,null,{"$f":"+A5","v":2025},"mg/Nm3","Monthly mean of half-hourly averages","Highest half- hourly average","Monthly mean of  daily averages","Highest daily average"]
["Jan",200,31.18,146.99,40,31.34,36.4,null,null,"A1","Jan",34.04,146.99,34.11,36.4]
["Feb",200,33.67,119.89,40,33.590000000000003,37.65,null,null,null,"Feb",35.1,119.89,35.06,37.65]
["Mar",200,34.08,98.45,40,34.03,36.22,null,null,null,"Mar",34.74,86.87,34.659999999999997,36.22,null,"Whole Installation table A5:G18:"]
["Apr",200,33.71,128.87,40,33.89,38.78,null,null,null,"Apr",33.36,128.87,33.340000000000003,35.29,null,"Mean: for 1/2 hourly and daily periods calculate mean of values across all operational combustion lines for the month"]
["May",200,34.69,155.88999999999999,40,34.71,37.44,null,null,null,"May",34.58,103.21,34.64,36.049999999999997]
["Jun",200,33.74,110.96,40,33.85,37.01,null,null,null,"Jun",34.479999999999997,69.89,34.659999999999997,36.68]
["Jul",200,34.200000000000003,92.75,40,34.24,36.42,null,null,null,"Jul",35.07,87.21,35.06,36.42,null,"Maximum: for 1/2 hourly and daily periods use the highest value across all operational combustion lines for the month"]
["Aug",200,34.549999999999997,134.71,40,34.6,36.340000000000003,null,null,null,"Aug",35.14,116.41,35.19,36.340000000000003]
["Sep",200,33.549999999999997,92.28,40,33.409999999999997,36.090000000000003,null,null,null,"Sep",34.68,86.93,34.4,35.950000000000003]
["Oct",200,32.04,72.17,40,32.61,36.04,null,null,null,"Oct",30.02,64.73,30.34,35.07]
["Nov",200,30.12,120.85,40,30.03,36.83,null,null,null,"Nov",24,120.85,23.99,36.83]
["Dec",200,31.47,107.71,40,31.56,37.049999999999997,null,null,null,"Dec",28.58,105.24,28.74,37.049999999999997]
[null,null,null,null,null,null,null,null,null,null,"Annual",{"$f":"AVERAGE(L7:L18)","v":32.81583333333333},{"$f":"MAX(M7:M18)","v":146.99},{"$f":"AVERAGE(N7:N18)","v":32.849166666666669},{"$f":"MAX(O7:O18)","v":37.65}]
[]
[null,null,null,null,null,null,null,null,null,{"$f":"+A5","v":2025},"mg/Nm3","Monthly mean of half-hourly averages","Highest half- hourly average","Monthly mean of  daily averages","Highest daily average"]
[null,null,null,null,null,null,null,null,null,"A2","Jan",32.29,110.88,32.29,35.979999999999997]
[null,null,null,null,null,null,null,null,null,null,"Feb",34.130000000000003,95.83,34.130000000000003,35.18]
[null,null,null,null,null,null,null,null,null,null,"Mar",33.700000000000003,98.45,33.659999999999997,36.04]
[null,null,null,null,null,null,null,null,null,null,"Apr",33.979999999999997,111.85,33.99,38.78]
[null,null,null,null,null,null,null,null,null,null,"May",34.93,86.16,34.93,37.44]
[null,null,null,null,null,null,null,null,null,null,"Jun",34.909999999999997,110.96,34.909999999999997,36.340000000000003]
[null,null,null,null,null,null,null,null,null,null,"Jul",34.76,92.75,34.76,35.67]
[null,null,null,null,null,null,null,null,null,null,"Aug",34.6,134.71,34.57,35.950000000000003]
[null,null,null,null,null,null,null,null,null,null,"Sep",33.06,65.16,32.979999999999997,35.53]
[null,null,null,null,null,null,null,null,null,null,"Oct",33.119999999999997,65.22,33.83,36.04]
[null,null,null,null,null,null,null,null,null,null,"Nov",33.82,81.819999999999993,33.81,35.89]
[null,null,null,null,null,null,null,null,null,null,"Dec",33.619999999999997,70.02,33.619999999999997,36.200000000000003]
[null,null,null,null,null,null,null,null,null,null,"Annual",{"$f":"AVERAGE(L22:L33)","v":33.910000000000004},{"$f":"MAX(M22:M33)","v":134.71},{"$f":"AVERAGE(N22:N33)","v":33.956666666666671},{"$f":"MAX(O22:O33)","v":38.78}]
[]
[null,null,null,null,null,null,null,null,null,{"$f":"+A5","v":2025},"mg/Nm3","Monthly mean of half-hourly averages","Highest half- hourly average","Monthly mean of  daily averages","Highest daily average"]
[null,null,null,null,null,null,null,null,null,"A3","Jan",27.56,121.9,27.99,34.729999999999997]
[null,null,null,null,null,null,null,null,null,null,"Feb",32,104.78,31.93,34.92]
[null,null,null,null,null,null,null,null,null,null,"Mar",33.82,97.67,33.81,35.380000000000003]
[null,null,null,null,null,null,null,null,null,null,"Apr",33.729999999999997,88.75,34.159999999999997,36.14]
[null,null,null,null,null,null,null,null,null,null,"May",34.549999999999997,155.88999999999999,34.549999999999997,36.68]
[null,null,null,null,null,null,null,null,null,null,"Jun",31.11,76.900000000000006,31.25,37.01]
[null,null,null,null,null,null,null,null,null,null,"Jul",32.78,66.239999999999995,32.85,34.99]
[null,null,null,null,null,null,null,null,null,null,"Aug",33.909999999999997,83.51,34.03,35.69]
[null,null,null,null,null,null,null,null,null,null,"Sep",33,92.28,32.94,36.090000000000003]
[null,null,null,null,null,null,null,null,null,null,"Oct",33.03,72.17,33.64,35.64]
[null,null,null,null,null,null,null,null,null,null,"Nov",33.590000000000003,81.13,33.619999999999997,35.450000000000003]
["Comments :",null,null,null,null,null,null,null,null,null,"Dec",32.21,107.71,32.24,35.340000000000003]
[null,null,null,null,null,null,null,null,null,null,"Annual",{"$f":"AVERAGE(L37:L48)","v":32.607500000000002},{"$f":"MAX(M37:M48)","v":155.88999999999999},{"$f":"AVERAGE(N37:N48)","v":32.750833333333333},{"$f":"MAX(O37:O48)","v":37.01}]
[]
[null,null,null,null,null,null,null,null,null,{"$f":"+A5","v":2025},"mg/Nm3","Monthly mean of half-hourly averages","Highest half- hourly average","Monthly mean of  daily averages","Highest daily average"]
[null,null,null,null,null,null,null,null,null,"A4","Jan"]
[null,null,null,null,null,null,null,null,null,null,"Feb"]
[null,null,null,null,null,null,null,null,null,null,"Mar"]
[null,null,null,null,null,null,null,null,null,null,"Apr"]
[null,null,null,null,null,null,null,null,null,null,"May"]
[null,null,null,null,null,null,null,null,null,null,"Jun"]
[null,null,null,null,null,null,null,null,null,null,"Jul"]
[null,null,null,null,null,null,null,null,null,null,"Aug"]
[null,null,null,null,null,null,null,null,null,null,"Sep"]
[null,null,null,null,null,null,null,null,null,null,"Oct"]
[null,null,null,null,null,null,null,null,null,null,"Nov"]
[null,null,null,null,null,null,null,null,null,null,"Dec"]
[null,null,null,null,null,null,null,null,null,null,"Annual",{"$f":"AVERAGE(L52:L63)","v":{"$error":"#DIV/0!"}},{"$f":"MAX(M52:M63)","v":0},{"$f":"AVERAGE(N52:N63)","v":{"$error":"#DIV/0!"}},{"$f":"MAX(O52:O63)","v":0}]
[]
[null,null,null,null,null,null,null,null,null,{"$f":"+A5","v":2025},"mg/Nm3","Monthly mean of half-hourly averages","Highest half- hourly average","Monthly mean of  daily averages","Highest daily average"]
[null,null,null,null,null,null,null,null,null,"A5","Jan"]
[null,null,null,null,null,null,null,null,null,null,"Feb"]
[null,null,null,null,null,null,null,null,null,null,"Mar"]
[null,null,null,null,null,null,null,null,null,null,"Apr"]
[null,null,null,null,null,null,null,null,null,null,"May"]
[null,null,null,null,null,null,null,null,null,null,"Jun"]
[null,null,null,null,null,null,null,null,null,null,"Jul"]
[null,null,null,null,null,null,null,null,null,null,"Aug"]
[null,null,null,null,null,null,null,null,null,null,"Sep"]
[null,null,null,null,null,null,null,null,null,null,"Oct"]
[null,null,null,null,null,null,null,null,null,null,"Nov"]
[null,null,null,null,null,null,null,null,null,null,"Dec"]
[null,null,null,null,null,null,null,null,null,null,"Annual",{"$f":"AVERAGE(L67:L78)","v":{"$error":"#DIV/0!"}},{"$f":"MAX(M67:M78)","v":0},{"$f":"AVERAGE(N67:N78)","v":{"$error":"#DIV/0!"}},{"$f":"MAX(O67:O78)","v":0}]

{"sheet":"NOx","index":16,"n_rows":79,"n_cols":17,"rows_kept":79,"cut":false,"hidden":false,"merged":[[3,16,7,18],[9,16,11,18],[12,16,15,18],[66,9,78,9],[4,1,4,3],[4,4,4,6],[4,9,4,14],[6,9,18,9],[21,9,33,9],[36,9,48,9],[47,0,47,6],[48,0,51,6],[51,9,63,9],[18,4,18,6]]}
[{"$f":"+'Cover Page'!$B$29","v":"Annual Performance Report 2025"},null,null,null,{"$f":"+'Cover Page'!$B$33","v":"The CSWDC Waste to Energy Plant"}]
[]
["Monitoring of Oxides of Nitrogen emissions",null,null,"Whole Installation",null,null,"See  Notes in Cell Q3",null,null,{"$f":"+A3","v":"Monitoring of Oxides of Nitrogen emissions"},null,null,null,"Per Combustion Line",null,null,"Notes:"]
[null,null,null,null,null,null,null,null,null,null,null,null,null,null,null,null,"User to add logic to complete Whole installation, Table A5:G18. From the data in Per Combustion Line, Table J6:O79, subject to No. of lines installed"]
[{"$f":"+'Cover Page'!C39","v":2025},"1/2 Hourly Reference Periods",null,null,"Daily Reference Periods"]
["mg/Nm3","1/2 hourly NOx ELV","Monthly mean of half-hourly averages","Highest half- hourly average","Daily NOx ELV","Monthly mean of  daily averages","Highest daily average",null,null,{"$f":"+A5","v":2025},"mg/Nm3","Monthly mean of half-hourly averages","Highest half- hourly average","Monthly mean of  daily averages","Highest daily average"]
["Jan",400,168.34,276.66000000000003,180,168.75,175.31,null,null,"A1","Jan",166.43,276.66000000000003,167.18,174.01]
["Feb",400,165.98,274.8,180,166.25,172.35,null,null,null,"Feb",162.19999999999999,274.8,162.68,167.14]
["Mar",400,168.59,313.36,180,168.54,174.9,null,null,null,"Mar",168.13,268,167.97,174.9,null,"Whole Installation table A5:G18:"]
["Apr",400,169.42,337.49,180,169.6,176.13,null,null,null,"Apr",170.5,337.49,170.89,176.13,null,"Mean: for 1/2 hourly and daily periods calculate mean of values across all operational combustion lines for the month"]
["May",400,171.31,337.7,180,171.26,176.2,null,null,null,"May",172.16,322.04000000000002,172.03,176.2]
["Jun",400,172.07,259.08999999999997,180,172.16,178.05,null,null,null,"Jun",172,259.08999999999997,172.21,174.96]
["Jul",400,171.11,283.42,180,171.14,176.66,null,null,null,"Jul",171.5,250.62,171.5,176.26,null,"Maximum: for 1/2 hourly and daily periods use the highest value across all operational combustion lines for the month"]
["Aug",400,170.71,287.23,180,170.73,177.65,null,null,null,"Aug",171.23,268.25,171.32,176.13]
["Sep",400,170.26,321.67,180,170.39,176.54,null,null,null,"Sep",172.66,225.23,172.72,176.02]
["Oct",400,171.24,342.28,180,171.38,178.49,null,null,null,"Oct",169.62,342.28,169.9,178.49]
["Nov",400,170.54,320.93,180,170.57,177.69,null,null,null,"Nov",170.52,320.93,170.52,177.69]
["Dec",400,170.53,317.92,180,170.5,174.9,null,null,null,"Dec",170.52,297.69,170.51,174.9]
[null,null,null,null,null,null,null,null,null,null,"Annual",{"$f":"AVERAGE(L7:L18)","v":169.78916666666669},{"$f":"MAX(M7:M18)","v":342.28},{"$f":"AVERAGE(N7:N18)","v":169.95250000000001},{"$f":"MAX(O7:O18)","v":178.49}]
[]
[null,null,null,null,null,null,null,null,null,{"$f":"+A5","v":2025},"mg/Nm3","Monthly mean of half-hourly averages","Highest half- hourly average","Monthly mean of  daily averages","Highest daily average"]
[null,null,null,null,null,null,null,null,null,"A2","Jan",169.98,274.32,169.98,175.31]
[null,null,null,null,null,null,null,null,null,null,"Feb",165.25,245.58,165.24,170.49]
[null,null,null,null,null,null,null,null,null,null,"Mar",166.77,313.36,166.75,173.88]
[null,null,null,null,null,null,null,null,null,null,"Apr",166.46,328.83,166.61,175.74]
[null,null,null,null,null,null,null,null,null,null,"May",171.33,337.7,171.33,175.93]
[null,null,null,null,null,null,null,null,null,null,"Jun",171.77,251.01,171.67,178.05]
[null,null,null,null,null,null,null,null,null,null,"Jul",171.85,283.42,171.85,176.66]
[null,null,null,null,null,null,null,null,null,null,"Aug",171.48,258.2,171.4,177.65]
[null,null,null,null,null,null,null,null,null,null,"Sep",169.14,321.67,169.18,172.63]
[null,null,null,null,null,null,null,null,null,null,"Oct",173.71,291.85000000000002,173.61,177.91]
[null,null,null,null,null,null,null,null,null,null,"Nov",170.89,307.81,170.89,175.47]
[null,null,null,null,null,null,null,null,null,null,"Dec",170.22,317.92,170.22,173.93]
[null,null,null,null,null,null,null,null,null,null,"Annual",{"$f":"AVERAGE(L22:L33)","v":169.90416666666667},{"$f":"MAX(M22:M33)","v":337.7},{"$f":"AVERAGE(N22:N33)","v":169.89416666666668},{"$f":"MAX(O22:O33)","v":178.05}]
[]
[null,null,null,null,null,null,null,null,null,{"$f":"+A5","v":2025},"mg/Nm3","Monthly mean of half-hourly averages","Highest half- hourly average","Monthly mean of  daily averages","Highest daily average"]
[null,null,null,null,null,null,null,null,null,"A3","Jan",168.26,262.75,168.63,174.52]
[null,null,null,null,null,null,null,null,null,null,"Feb",169.92,252.52,169.94,172.35]
[null,null,null,null,null,null,null,null,null,null,"Mar",170.86,299.05,170.86,174.76]
[null,null,null,null,null,null,null,null,null,null,"Apr",171.03,274.14,171.24,175.43]
[null,null,null,null,null,null,null,null,null,null,"May",170.48,320.27,170.48,174.66]
[null,null,null,null,null,null,null,null,null,null,"Jun",172.62,242.27,172.83,174.62]
[null,null,null,null,null,null,null,null,null,null,"Jul",169.97,262.89,170.02,176.31]
[null,null,null,null,null,null,null,null,null,null,"Aug",169.39,287.23,169.46,174.52]
[null,null,null,null,null,null,null,null,null,null,"Sep",169.16,305.14,169.49,176.54]
[null,null,null,null,null,null,null,null,null,null,"Oct",170.78,280.13,170.92,174.21]
[null,null,null,null,null,null,null,null,null,null,"Nov",170.08,310.29000000000002,170.12,175.4]
["Comments :",null,null,null,null,null,null,null,null,null,"Dec",170.85,286.99,170.79,174.27]
[null,null,null,null,null,null,null,null,null,null,"Annual",{"$f":"AVERAGE(L37:L48)","v":170.2833333333333},{"$f":"MAX(M37:M48)","v":320.27},{"$f":"AVERAGE(N37:N48)","v":170.39833333333334},{"$f":"MAX(O37:O48)","v":176.54}]
[]
[null,null,null,null,null,null,null,null,null,{"$f":"+A5","v":2025},"mg/Nm3","Monthly mean of half-hourly averages","Highest half- hourly average","Monthly mean of  daily averages","Highest daily average"]
[null,null,null,null,null,null,null,null,null,"A4","Jan"]
[null,null,null,null,null,null,null,null,null,null,"Feb"]
[null,null,null,null,null,null,null,null,null,null,"Mar"]
[null,null,null,null,null,null,null,null,null,null,"Apr"]
[null,null,null,null,null,null,null,null,null,null,"May"]
[null,null,null,null,null,null,null,null,null,null,"Jun"]
[null,null,null,null,null,null,null,null,null,null,"Jul"]
[null,null,null,null,null,null,null,null,null,null,"Aug"]
[null,null,null,null,null,null,null,null,null,null,"Sep"]
[null,null,null,null,null,null,null,null,null,null,"Oct"]
[null,null,null,null,null,null,null,null,null,null,"Nov"]
[null,null,null,null,null,null,null,null,null,null,"Dec"]
[null,null,null,null,null,null,null,null,null,null,"Annual",{"$f":"AVERAGE(L52:L63)","v":{"$error":"#DIV/0!"}},{"$f":"MAX(M52:M63)","v":0},{"$f":"AVERAGE(N52:N63)","v":{"$error":"#DIV/0!"}},{"$f":"MAX(O52:O63)","v":0}]
[]
[null,null,null,null,null,null,null,null,null,{"$f":"+A5","v":2025},"mg/Nm3","Monthly mean of half-hourly averages","Highest half- hourly average","Monthly mean of  daily averages","Highest daily average"]
[null,null,null,null,null,null,null,null,null,"A5","Jan"]
[null,null,null,null,null,null,null,null,null,null,"Feb"]
[null,null,null,null,null,null,null,null,null,null,"Mar"]
[null,null,null,null,null,null,null,null,null,null,"Apr"]
[null,null,null,null,null,null,null,null,null,null,"May"]
[null,null,null,null,null,null,null,null,null,null,"Jun"]
[null,null,null,null,null,null,null,null,null,null,"Jul"]
[null,null,null,null,null,null,null,null,null,null,"Aug"]
[null,null,null,null,null,null,null,null,null,null,"Sep"]
[null,null,null,null,null,null,null,null,null,null,"Oct"]
[null,null,null,null,null,null,null,null,null,null,"Nov"]
[null,null,null,null,null,null,null,null,null,null,"Dec"]
[null,null,null,null,null,null,null,null,null,null,"Annual",{"$f":"AVERAGE(L67:L78)","v":{"$error":"#DIV/0!"}},{"$f":"MAX(M67:M78)","v":0},{"$f":"AVERAGE(N67:N78)","v":{"$error":"#DIV/0!"}},{"$f":"MAX(O67:O78)","v":0}]

{"sheet":"TOC","index":17,"n_rows":79,"n_cols":17,"rows_kept":79,"cut":false,"hidden":false,"merged":[[3,16,7,18],[9,16,11,18],[12,16,15,18],[66,9,78,9],[4,1,4,3],[4,4,4,6],[4,9,4,14],[6,9,18,9],[21,9,33,9],[36,9,48,9],[47,0,47,6],[48,0,51,6],[51,9,63,9]]}
[{"$f":"+'Cover Page'!$B$29","v":"Annual Performance Report 2025"},null,null,null,{"$f":"+'Cover Page'!$B$33","v":"The CSWDC Waste to Energy Plant"}]
[]
["Monitoring of Total organic carbon emissions",null,null,"Whole Installation",null,null,"See  Notes in Cell Q3",null,null,{"$f":"+A3","v":"Monitoring of Total organic carbon emissions"},null,null,null,"Per Combustion Line",null,null,"Notes:"]
[null,null,null,null,null,null,null,null,null,null,null,null,null,null,null,null,"User to add logic to complete Whole installation, Table A5:G18. From the data in Per Combustion Line, Table J6:O79, subject to No. of lines installed"]
[{"$f":"+'Cover Page'!C39","v":2025},"1/2 Hourly Reference Periods",null,null,"Daily Reference Periods"]
["mg/Nm3","1/2 hourly TOC ELV","Monthly mean of half-hourly averages","Highest half- hourly average","Daily TOC ELV","Monthly mean of  daily averages","Highest daily average",null,null,{"$f":"+A5","v":2025},"mg/Nm3","Monthly mean of half-hourly averages","Highest half- hourly average","Monthly mean of  daily averages","Highest daily average"]
["Jan",20,0.56000000000000005,10.220000000000001,10,0.54,1.19,null,null,"A1","Jan",0.74,6.45,0.71,1.19]
["Feb",20,0.79,18.2,10,0.77,1.78,null,null,null,"Feb",0.72,6.44,0.71,1.78]
["Mar",20,0.8,11,10,0.8,1.6,null,null,null,"Mar",0.72,5.27,0.71,1.6,null,"Whole Installation table A5:G18:"]
["Apr",20,0.63,5.39,10,0.62,1.28,null,null,null,"Apr",1.05,5.39,1.04,1.28,null,"Mean: for 1/2 hourly and daily periods calculate mean of values across all operational combustion lines for the month"]
["May",20,0.81,6.06,10,0.8,1.7,null,null,null,"May",1.1200000000000001,6.06,1.1200000000000001,1.7]
["Jun",20,0.99,8.86,10,0.99,2.06,null,null,null,"Jun",1.61,5.72,1.6,2.06]
["Jul",20,0.97,6.6,10,0.97,1.8,null,null,null,"Jul",1.57,5.74,1.57,1.8,null,"Maximum: for 1/2 hourly and daily periods use the highest value across all operational combustion lines for the month"]
["Aug",20,0.94,6.05,10,0.95,1.85,null,null,null,"Aug",1.52,5.49,1.52,1.85]
["Sep",20,1.01,7.17,10,1,1.8,null,null,null,"Sep",1.67,5.62,1.67,1.8]
["Oct",20,0.76,15.77,10,0.74,1.64,null,null,null,"Oct",1.04,8.31,1.02,1.64]
["Nov",20,0.6,6.06,10,0.6,1.35,null,null,null,"Nov",1.1499999999999999,6.06,1.1499999999999999,1.35]
["Dec",20,0.66,8.34,10,0.65,1.36,null,null,null,"Dec",1.1200000000000001,6.39,1.1100000000000001,1.36]
[null,null,null,null,null,null,null,null,null,null,"Annual",{"$f":"AVERAGE(L7:L18)","v":1.1691666666666667},{"$f":"MAX(M7:M18)","v":8.31},{"$f":"AVERAGE(N7:N18)","v":1.1608333333333334},{"$f":"MAX(O7:O18)","v":2.06}]
[]
[null,null,null,null,null,null,null,null,null,{"$f":"+A5","v":2025},"mg/Nm3","Monthly mean of half-hourly averages","Highest half- hourly average","Monthly mean of  daily averages","Highest daily average"]
[null,null,null,null,null,null,null,null,null,"A2","Jan",0.45,5.16,0.45,0.91]
[null,null,null,null,null,null,null,null,null,null,"Feb",0.61,6.58,0.61,1.02]
[null,null,null,null,null,null,null,null,null,null,"Mar",0.8,5.05,0.8,1.43]
[null,null,null,null,null,null,null,null,null,null,"Apr",0.22,4.1100000000000003,0.22,0.69]
[null,null,null,null,null,null,null,null,null,null,"May",0.65,4.79,0.65,1.04]
[null,null,null,null,null,null,null,null,null,null,"Jun",0.67,8.86,0.67,0.95]
[null,null,null,null,null,null,null,null,null,null,"Jul",0.64,5.08,0.64,0.99]
[null,null,null,null,null,null,null,null,null,null,"Aug",0.64,6.05,0.64,0.93]
[null,null,null,null,null,null,null,null,null,null,"Sep",0.73,5.71,0.73,0.93]
[null,null,null,null,null,null,null,null,null,null,"Oct",0.56999999999999995,5.9,0.56000000000000005,0.83]
[null,null,null,null,null,null,null,null,null,null,"Nov",0.15,3.62,0.15,0.31]
[null,null,null,null,null,null,null,null,null,null,"Dec",0.18,3.16,0.18,0.33]
[null,null,null,null,null,null,null,null,null,null,"Annual",{"$f":"AVERAGE(L22:L33)","v":0.52583333333333337},{"$f":"MAX(M22:M33)","v":8.86},{"$f":"AVERAGE(N22:N33)","v":0.52500000000000002},{"$f":"MAX(O22:O33)","v":1.43}]
[]
[null,null,null,null,null,null,null,null,null,{"$f":"+A5","v":2025},"mg/Nm3","Monthly mean of half-hourly averages","Highest half- hourly average","Monthly mean of  daily averages","Highest daily average"]
[null,null,null,null,null,null,null,null,null,"A3","Jan",0.52,10.220000000000001,0.5,1.06]
[null,null,null,null,null,null,null,null,null,null,"Feb",1.02,18.2,0.97,1.57]
[null,null,null,null,null,null,null,null,null,null,"Mar",0.89,11,0.89,1.46]
[null,null,null,null,null,null,null,null,null,null,"Apr",0.67,1.56,0.68,0.86]
[null,null,null,null,null,null,null,null,null,null,"May",0.66,2.59,0.66,0.85]
[null,null,null,null,null,null,null,null,null,null,"Jun",0.73,6.14,0.73,1.2]
[null,null,null,null,null,null,null,null,null,null,"Jul",0.69,6.6,0.69,0.93]
[null,null,null,null,null,null,null,null,null,null,"Aug",0.66,5.25,0.66,0.8]
[null,null,null,null,null,null,null,null,null,null,"Sep",0.68,7.17,0.68,0.79]
[null,null,null,null,null,null,null,null,null,null,"Oct",0.65,15.77,0.63,0.84]
[null,null,null,null,null,null,null,null,null,null,"Nov",0.45,4.2699999999999996,0.45,0.69]
["Comments :",null,null,null,null,null,null,null,null,null,"Dec",0.67,8.34,0.67,0.83]
[null,null,null,null,null,null,null,null,null,null,"Annual",{"$f":"AVERAGE(L37:L48)","v":0.69083333333333341},{"$f":"MAX(M37:M48)","v":18.2},{"$f":"AVERAGE(N37:N48)","v":0.68416666666666659},{"$f":"MAX(O37:O48)","v":1.57}]
[]
[null,null,null,null,null,null,null,null,null,{"$f":"+A5","v":2025},"mg/Nm3","Monthly mean of half-hourly averages","Highest half- hourly average","Monthly mean of  daily averages","Highest daily average"]
[null,null,null,null,null,null,null,null,null,"A4","Jan"]
[null,null,null,null,null,null,null,null,null,null,"Feb"]
[null,null,null,null,null,null,null,null,null,null,"Mar"]
[null,null,null,null,null,null,null,null,null,null,"Apr"]
[null,null,null,null,null,null,null,null,null,null,"May"]
[null,null,null,null,null,null,null,null,null,null,"Jun"]
[null,null,null,null,null,null,null,null,null,null,"Jul"]
[null,null,null,null,null,null,null,null,null,null,"Aug"]
[null,null,null,null,null,null,null,null,null,null,"Sep"]
[null,null,null,null,null,null,null,null,null,null,"Oct"]
[null,null,null,null,null,null,null,null,null,null,"Nov"]
[null,null,null,null,null,null,null,null,null,null,"Dec"]
[null,null,null,null,null,null,null,null,null,null,"Annual",{"$f":"AVERAGE(L52:L63)","v":{"$error":"#DIV/0!"}},{"$f":"MAX(M52:M63)","v":0},{"$f":"AVERAGE(N52:N63)","v":{"$error":"#DIV/0!"}},{"$f":"MAX(O52:O63)","v":0}]
[]
[null,null,null,null,null,null,null,null,null,{"$f":"+A5","v":2025},"mg/Nm3","Monthly mean of half-hourly averages","Highest half- hourly average","Monthly mean of  daily averages","Highest daily average"]
[null,null,null,null,null,null,null,null,null,"A5","Jan"]
[null,null,null,null,null,null,null,null,null,null,"Feb"]
[null,null,null,null,null,null,null,null,null,null,"Mar"]
[null,null,null,null,null,null,null,null,null,null,"Apr"]
[null,null,null,null,null,null,null,null,null,null,"May"]
[null,null,null,null,null,null,null,null,null,null,"Jun"]
[null,null,null,null,null,null,null,null,null,null,"Jul"]
[null,null,null,null,null,null,null,null,null,null,"Aug"]
[null,null,null,null,null,null,null,null,null,null,"Sep"]
[null,null,null,null,null,null,null,null,null,null,"Oct"]
[null,null,null,null,null,null,null,null,null,null,"Nov"]
[null,null,null,null,null,null,null,null,null,null,"Dec"]
[null,null,null,null,null,null,null,null,null,null,"Annual",{"$f":"AVERAGE(L67:L78)","v":{"$error":"#DIV/0!"}},{"$f":"MAX(M67:M78)","v":0},{"$f":"AVERAGE(N67:N78)","v":{"$error":"#DIV/0!"}},{"$f":"MAX(O67:O78)","v":0}]

{"sheet":"Particulates","index":18,"n_rows":79,"n_cols":17,"rows_kept":79,"cut":false,"hidden":false,"merged":[[4,16,8,18],[10,16,12,18],[13,16,16,18],[66,9,78,9],[4,1,4,3],[4,4,4,6],[4,9,4,14],[6,9,18,9],[21,9,33,9],[36,9,48,9],[47,0,47,6],[48,0,51,6],[51,9,63,9],[18,4,18,6]]}
[{"$f":"+'Cover Page'!$B$29","v":"Annual Performance Report 2025"},null,null,null,{"$f":"+'Cover Page'!$B$33","v":"The CSWDC Waste to Energy Plant"}]
[]
["Monitoring of Particulate matter emissions",null,null,"Whole Installation",null,null,"See  Notes in Cell Q3",null,null,{"$f":"+A3","v":"Monitoring of Particulate matter emissions"},null,null,null,"Per Combustion Line",null,null,"Notes:"]
[]
[{"$f":"+'Cover Page'!C39","v":2025},"1/2 Hourly Reference Periods",null,null,"Daily Reference Periods",null,null,null,null,null,null,null,null,null,null,null,"User to add logic to complete Whole installation, Table A5:G18. From the data in Per Combustion Line, Table J6:O79, subject to No. of lines installed"]
["mg/Nm3","1/2 hourly PM ELV","Monthly mean of half-hourly averages","Highest half- hourly average","Daily PM ELV","Monthly mean of  daily averages","Highest daily average",null,null,{"$f":"+A5","v":2025},"mg/Nm3","Monthly mean of half-hourly averages","Highest half- hourly average","Monthly mean of  daily averages","Highest daily average"]
["Jan",30,0.54,1.1200000000000001,5,0.55000000000000004,1.04,null,null,"A1","Jan",0.41,0.72,0.41,0.46]
["Feb",30,0.77,30.87,5,0.78,3.12,null,null,null,"Feb",0.93,30.87,1.02,3.12]
["Mar",30,0.78,7.15,5,0.79,3.46,null,null,null,"Mar",0.81,7.15,0.84,3.46]
["Apr",30,0.66,1.83,5,0.66,0.96,null,null,null,"Apr",0.38,1.41,0.38,0.4,null,"Whole Installation table A5:G18:"]
["May",30,0.7,1.62,5,0.7,1.18,null,null,null,"May",0.38,0.8,0.38,0.4,null,"Mean: for 1/2 hourly and daily periods calculate mean of values across all operational combustion lines for the month"]
["Jun",30,0.65,1.62,5,0.65,1.08,null,null,null,"Jun",0.4,0.66,0.4,0.44]
["Jul",30,0.59,1.46,5,0.59,1.1000000000000001,null,null,null,"Jul",0.43,0.56999999999999995,0.43,0.46]
["Aug",30,0.53,1.8,5,0.53,1.1000000000000001,null,null,null,"Aug",0.42,0.6,0.42,0.44,null,"Maximum: for 1/2 hourly and daily periods use the highest value across all operational combustion lines for the month"]
["Sep",30,0.51,2.12,5,0.5,1.06,null,null,null,"Sep",0.41,0.52,0.41,0.42]
["Oct",30,0.9,7.73,5,0.9,2.57,null,null,null,"Oct",0.41,1.23,0.41,0.44]
["Nov",30,0.66,3.41,5,0.65,1.96,null,null,null,"Nov",0.41,0.74,0.41,0.44]
["Dec",30,0.56999999999999995,2.5299999999999998,5,0.56999999999999995,2.09,null,null,null,"Dec",0.41,0.62,0.41,0.44]
[null,null,null,null,null,null,null,null,null,null,"Annual",{"$f":"AVERAGE(L7:L18)","v":0.48333333333333339},{"$f":"MAX(M7:M18)","v":30.87},{"$f":"AVERAGE(N7:N18)","v":0.4933333333333334},{"$f":"MAX(O7:O18)","v":3.46}]
[]
[null,null,null,null,null,null,null,null,null,{"$f":"+A5","v":2025},"mg/Nm3","Monthly mean of half-hourly averages","Highest half- hourly average","Monthly mean of  daily averages","Highest daily average"]
[null,null,null,null,null,null,null,null,null,"A2","Jan",0.75,1.1200000000000001,0.75,1.04]
[null,null,null,null,null,null,null,null,null,null,"Feb",0.67,1.44,0.67,0.8]
[null,null,null,null,null,null,null,null,null,null,"Mar",0.7,1.86,0.7,0.82]
[null,null,null,null,null,null,null,null,null,null,"Apr",0.81,1.83,0.81,0.96]
[null,null,null,null,null,null,null,null,null,null,"May",0.86,1.27,0.86,0.94]
[null,null,null,null,null,null,null,null,null,null,"Jun",0.78,1.22,0.78,0.93]
[null,null,null,null,null,null,null,null,null,null,"Jul",0.51,1.0900000000000001,0.51,0.83]
[null,null,null,null,null,null,null,null,null,null,"Aug",0.32,1.1200000000000001,0.32,0.41]
[null,null,null,null,null,null,null,null,null,null,"Sep",0.28999999999999998,0.53,0.28999999999999998,0.31]
[null,null,null,null,null,null,null,null,null,null,"Oct",1.07,7.73,1.04,2.57]
[null,null,null,null,null,null,null,null,null,null,"Nov",0.65,2.5,0.65,1.96]
[null,null,null,null,null,null,null,null,null,null,"Dec",0.77,2.5299999999999998,0.77,2.09]
[null,null,null,null,null,null,null,null,null,null,"Annual",{"$f":"AVERAGE(L22:L33)","v":0.68166666666666675},{"$f":"MAX(M22:M33)","v":7.73},{"$f":"AVERAGE(N22:N33)","v":0.6791666666666667},{"$f":"MAX(O22:O33)","v":2.57}]
[]
[null,null,null,null,null,null,null,null,null,{"$f":"+A5","v":2025},"mg/Nm3","Monthly mean of half-hourly averages","Highest half- hourly average","Monthly mean of  daily averages","Highest daily average"]
[null,null,null,null,null,null,null,null,null,"A3","Jan",0.44,0.81,0.44,0.62]
[null,null,null,null,null,null,null,null,null,null,"Feb",0.72,1.23,0.72,0.88]
[null,null,null,null,null,null,null,null,null,null,"Mar",0.84,2.2599999999999998,0.84,1.07]
[null,null,null,null,null,null,null,null,null,null,"Apr",0.73,1.3,0.72,0.92]
[null,null,null,null,null,null,null,null,null,null,"May",0.84,1.62,0.84,1.18]
[null,null,null,null,null,null,null,null,null,null,"Jun",0.74,1.62,0.74,1.08]
[null,null,null,null,null,null,null,null,null,null,"Jul",0.83,1.46,0.82,1.1000000000000001]
[null,null,null,null,null,null,null,null,null,null,"Aug",0.84,1.8,0.86,1.1000000000000001]
[null,null,null,null,null,null,null,null,null,null,"Sep",0.79,2.12,0.79,1.06]
[null,null,null,null,null,null,null,null,null,null,"Oct",1.23,2.11,1.23,1.41]
[null,null,null,null,null,null,null,null,null,null,"Nov",1.01,3.41,1.01,1.29]
["Comments :",null,null,null,null,null,null,null,null,null,"Dec",0.51,1,0.52,0.71]
[null,null,null,null,null,null,null,null,null,null,"Annual",{"$f":"AVERAGE(L37:L48)","v":0.79333333333333333},{"$f":"MAX(M37:M48)","v":3.41},{"$f":"AVERAGE(N37:N48)","v":0.79416666666666658},{"$f":"MAX(O37:O48)","v":1.41}]
[]
[null,null,null,null,null,null,null,null,null,{"$f":"+A5","v":2025},"mg/Nm3","Monthly mean of half-hourly averages","Highest half- hourly average","Monthly mean of  daily averages","Highest daily average"]
[null,null,null,null,null,null,null,null,null,"A4","Jan"]
[null,null,null,null,null,null,null,null,null,null,"Feb"]
[null,null,null,null,null,null,null,null,null,null,"Mar"]
[null,null,null,null,null,null,null,null,null,null,"Apr"]
[null,null,null,null,null,null,null,null,null,null,"May"]
[null,null,null,null,null,null,null,null,null,null,"Jun"]
[null,null,null,null,null,null,null,null,null,null,"Jul"]
[null,null,null,null,null,null,null,null,null,null,"Aug"]
[null,null,null,null,null,null,null,null,null,null,"Sep"]
[null,null,null,null,null,null,null,null,null,null,"Oct"]
[null,null,null,null,null,null,null,null,null,null,"Nov"]
[null,null,null,null,null,null,null,null,null,null,"Dec"]
[null,null,null,null,null,null,null,null,null,null,"Annual",{"$f":"AVERAGE(L52:L63)","v":{"$error":"#DIV/0!"}},{"$f":"MAX(M52:M63)","v":0},{"$f":"AVERAGE(N52:N63)","v":{"$error":"#DIV/0!"}},{"$f":"MAX(O52:O63)","v":0}]
[]
[null,null,null,null,null,null,null,null,null,{"$f":"+A5","v":2025},"mg/Nm3","Monthly mean of half-hourly averages","Highest half- hourly average","Monthly mean of  daily averages","Highest daily average"]
[null,null,null,null,null,null,null,null,null,"A5","Jan"]
[null,null,null,null,null,null,null,null,null,null,"Feb"]
[null,null,null,null,null,null,null,null,null,null,"Mar"]
[null,null,null,null,null,null,null,null,null,null,"Apr"]
[null,null,null,null,null,null,null,null,null,null,"May"]
[null,null,null,null,null,null,null,null,null,null,"Jun"]
[null,null,null,null,null,null,null,null,null,null,"Jul"]
[null,null,null,null,null,null,null,null,null,null,"Aug"]
[null,null,null,null,null,null,null,null,null,null,"Sep"]
[null,null,null,null,null,null,null,null,null,null,"Oct"]
[null,null,null,null,null,null,null,null,null,null,"Nov"]
[null,null,null,null,null,null,null,null,null,null,"Dec"]
[null,null,null,null,null,null,null,null,null,null,"Annual",{"$f":"AVERAGE(L67:L78)","v":{"$error":"#DIV/0!"}},{"$f":"MAX(M67:M78)","v":0},{"$f":"AVERAGE(N67:N78)","v":{"$error":"#DIV/0!"}},{"$f":"MAX(O67:O78)","v":0}]

{"sheet":"CO 0.5 hourly","index":19,"n_rows":82,"n_cols":17,"rows_kept":82,"cut":false,"hidden":false,"merged":[[4,0,5,6],[6,16,10,18],[12,16,14,18],[15,16,18,18],[69,9,81,9],[7,1,7,3],[7,4,7,6],[7,9,7,14],[9,9,21,9],[24,9,36,9],[39,9,51,9],[50,0,50,6],[51,0,54,6],[54,9,66,9]]}
[{"$f":"+'Cover Page'!$B$29","v":"Annual Performance Report 2025"},null,null,null,{"$f":"+'Cover Page'!$B$33","v":"The CSWDC Waste to Energy Plant"}]
[]
["Monitoring of Carbon Monoxide (half hourly)",null,null,"Whole Installation",null,null,"See  Notes in Cell Q3",null,null,{"$f":"+A3","v":"Monitoring of Carbon Monoxide (half hourly)"},null,null,null,"Per Combustion Line",null,null,"Notes:"]
[]
["Please complete this tab for your plant if you have 1/2 hourly CO ELVs; otherwise, leave it blank and complete the CO 95% 10 min tab"]
[]
[null,null,null,null,null,null,null,null,null,null,null,null,null,null,null,null,"User to add logic to complete Whole installation, Table A5:G18. From the data in Per Combustion Line, Table J6:O79, subject to No. of lines installed"]
[{"$f":"+'Cover Page'!C39","v":2025},"1/2 Hourly Reference Periods",null,null,"Daily Reference Periods"]
["mg/Nm3","1/2 hourly CO ELV","Monthly mean of half-hourly averages","Highest half- hourly average","Daily CO ELV","Monthly mean of  daily averages","Highest daily average",null,null,{"$f":"+A8","v":2025},"mg/Nm3","Monthly mean of half-hourly averages","Highest half- hourly average","Monthly mean of  daily averages","Highest daily average"]
["Jan",100,null,null,50,null,null,null,null,"A1","Jan"]
["Feb",{"$f":"+B10","v":100},null,null,{"$f":"+E10","v":50},null,null,null,null,null,"Feb"]
["Mar",{"$f":"+B11","v":100},null,null,{"$f":"+E11","v":50},null,null,null,null,null,"Mar",null,null,null,null,null,"Whole Installation table A5:G18:"]
["Apr",100,null,null,50,null,null,null,null,null,"Apr",null,null,null,null,null,"Mean: for 1/2 hourly and daily periods calculate mean of values across all operational combustion lines for the month"]
["May",100,null,null,50,null,null,null,null,null,"May"]
["Jun",100,null,null,50,null,null,null,null,null,"Jun"]
["Jul",100,null,null,50,null,null,null,null,null,"Jul",null,null,null,null,null,"Maximum: for 1/2 hourly and daily periods use the highest value across all operational combustion lines for the month"]
["Aug",100,null,null,50,null,null,null,null,null,"Aug"]
["Sep",100,null,null,50,null,null,null,null,null,"Sep"]
["Oct",100,null,null,50,null,null,null,null,null,"Oct"]
["Nov",100,null,null,50,null,null,null,null,null,"Nov"]
["Dec",100,null,null,50,null,null,null,null,null,"Dec"]
[null,null,null,null,null,null,null,null,null,null,"Annual",{"$f":"AVERAGE(L10:L21)","v":{"$error":"#DIV/0!"}},{"$f":"MAX(M10:M21)","v":0},{"$f":"AVERAGE(N10:N21)","v":{"$error":"#DIV/0!"}},{"$f":"MAX(O10:O21)","v":0}]
[]
[null,null,null,null,null,null,null,null,null,{"$f":"+A8","v":2025},"mg/Nm3","Monthly mean of half-hourly averages","Highest half- hourly average","Monthly mean of  daily averages","Highest daily average"]
[null,null,null,null,null,null,null,null,null,"A2","Jan"]
[null,null,null,null,null,null,null,null,null,null,"Feb"]
[null,null,null,null,null,null,null,null,null,null,"Mar"]
[null,null,null,null,null,null,null,null,null,null,"Apr"]
[null,null,null,null,null,null,null,null,null,null,"May"]
[null,null,null,null,null,null,null,null,null,null,"Jun"]
[null,null,null,null,null,null,null,null,null,null,"Jul"]
[null,null,null,null,null,null,null,null,null,null,"Aug"]
[null,null,null,null,null,null,null,null,null,null,"Sep"]
[null,null,null,null,null,null,null,null,null,null,"Oct"]
[null,null,null,null,null,null,null,null,null,null,"Nov"]
[null,null,null,null,null,null,null,null,null,null,"Dec"]
[null,null,null,null,null,null,null,null,null,null,"Annual",{"$f":"AVERAGE(L25:L36)","v":{"$error":"#DIV/0!"}},{"$f":"MAX(M25:M36)","v":0},{"$f":"AVERAGE(N25:N36)","v":{"$error":"#DIV/0!"}},{"$f":"MAX(O25:O36)","v":0}]
[]
[null,null,null,null,null,null,null,null,null,{"$f":"+A8","v":2025},"mg/Nm3","Monthly mean of half-hourly averages","Highest half- hourly average","Monthly mean of  daily averages","Highest daily average"]
[null,null,null,null,null,null,null,null,null,"A3","Jan"]
[null,null,null,null,null,null,null,null,null,null,"Feb"]
[null,null,null,null,null,null,null,null,null,null,"Mar"]
[null,null,null,null,null,null,null,null,null,null,"Apr"]
[null,null,null,null,null,null,null,null,null,null,"May"]
[null,null,null,null,null,null,null,null,null,null,"Jun"]
[null,null,null,null,null,null,null,null,null,null,"Jul"]
[null,null,null,null,null,null,null,null,null,null,"Aug"]
[null,null,null,null,null,null,null,null,null,null,"Sep"]
[null,null,null,null,null,null,null,null,null,null,"Oct"]
[null,null,null,null,null,null,null,null,null,null,"Nov"]
["Comments :",null,null,null,null,null,null,null,null,null,"Dec"]
[null,null,null,null,null,null,null,null,null,null,"Annual",{"$f":"AVERAGE(L40:L51)","v":{"$error":"#DIV/0!"}},{"$f":"MAX(M40:M51)","v":0},{"$f":"AVERAGE(N40:N51)","v":{"$error":"#DIV/0!"}},{"$f":"MAX(O40:O51)","v":0}]
[]
[null,null,null,null,null,null,null,null,null,{"$f":"+A8","v":2025},"mg/Nm3","Monthly mean of half-hourly averages","Highest half- hourly average","Monthly mean of  daily averages","Highest daily average"]
[null,null,null,null,null,null,null,null,null,"A4","Jan"]
[null,null,null,null,null,null,null,null,null,null,"Feb"]
[null,null,null,null,null,null,null,null,null,null,"Mar"]
[null,null,null,null,null,null,null,null,null,null,"Apr"]
[null,null,null,null,null,null,null,null,null,null,"May"]
[null,null,null,null,null,null,null,null,null,null,"Jun"]
[null,null,null,null,null,null,null,null,null,null,"Jul"]
[null,null,null,null,null,null,null,null,null,null,"Aug"]
[null,null,null,null,null,null,null,null,null,null,"Sep"]
[null,null,null,null,null,null,null,null,null,null,"Oct"]
[null,null,null,null,null,null,null,null,null,null,"Nov"]
[null,null,null,null,null,null,null,null,null,null,"Dec"]
[null,null,null,null,null,null,null,null,null,null,"Annual",{"$f":"AVERAGE(L55:L66)","v":{"$error":"#DIV/0!"}},{"$f":"MAX(M55:M66)","v":0},{"$f":"AVERAGE(N55:N66)","v":{"$error":"#DIV/0!"}},{"$f":"MAX(O55:O66)","v":0}]
[]
[null,null,null,null,null,null,null,null,null,{"$f":"+A8","v":2025},"mg/Nm3","Monthly mean of half-hourly averages","Highest half- hourly average","Monthly mean of  daily averages","Highest daily average"]
[null,null,null,null,null,null,null,null,null,"A5","Jan"]
[null,null,null,null,null,null,null,null,null,null,"Feb"]
[null,null,null,null,null,null,null,null,null,null,"Mar"]
[null,null,null,null,null,null,null,null,null,null,"Apr"]
[null,null,null,null,null,null,null,null,null,null,"May"]
[null,null,null,null,null,null,null,null,null,null,"Jun"]
[null,null,null,null,null,null,null,null,null,null,"Jul"]
[null,null,null,null,null,null,null,null,null,null,"Aug"]
[null,null,null,null,null,null,null,null,null,null,"Sep"]
[null,null,null,null,null,null,null,null,null,null,"Oct"]
[null,null,null,null,null,null,null,null,null,null,"Nov"]
[null,null,null,null,null,null,null,null,null,null,"Dec"]
[null,null,null,null,null,null,null,null,null,null,"Annual",{"$f":"AVERAGE(L70:L81)","v":{"$error":"#DIV/0!"}},{"$f":"MAX(M70:M81)","v":0},{"$f":"AVERAGE(N70:N81)","v":{"$error":"#DIV/0!"}},{"$f":"MAX(O70:O81)","v":0}]

{"sheet":"CO 95% 10 min","index":20,"n_rows":82,"n_cols":19,"rows_kept":82,"cut":false,"hidden":false,"merged":[[4,0,5,7],[6,18,10,20],[12,18,14,20],[15,18,18,20],[69,10,81,10],[7,1,7,4],[7,5,7,7],[7,10,7,16],[9,10,21,10],[24,10,36,10],[39,10,51,10],[50,0,50,7],[51,0,54,7],[54,10,66,10]]}
[{"$f":"+'Cover Page'!$B$29","v":"Annual Performance Report 2025"},null,null,null,{"$f":"+'Cover Page'!$B$33","v":"The CSWDC Waste to Energy Plant"}]
[]
["Monitoring of Carbon Monoxide (10-minute avg)",null,null,null,"Whole Installation",null,null,"See  Notes in Cell S3",null,{"$f":"+A3","v":"Monitoring of Carbon Monoxide (10-minute avg)"},null,null,null,null,"Per Combustion Line",null,"Notes:",null,"Notes:"]
[]
["Please complete this tab for your plant if you have 10-minute average CO ELVs; otherwise, leave it blank and complete the CO 0.5 hourly tab"]
[]
[null,null,null,null,null,null,null,null,null,null,null,null,null,null,null,null,null,null,"User to add logic to complete Whole installation, Table A5:H18. From the data in Per Combustion Line, Table K6:Q79, subject to No. of lines installed"]
[{"$f":"+'Cover Page'!C39","v":2025},"10-minute Reference Periods",null,null,null,"Daily Reference Periods"]
["mg/Nm3","95%ile 10-min avg CO ELV","Highest daily 95%ile 10-min average","Monthly mean of 10-min averages","Highest 10-min average","Daily CO ELV","Monthly mean of  daily averages","Highest daily average",null,null,{"$f":"+A8","v":2025},"mg/Nm3","Highest daily 95%ile 10-min average","Monthly mean of 10-min averages","Highest 10-min average","Monthly mean of  daily averages","Highest daily average"]
["Jan",150,94.5,20.149999999999999,434.45,50,19.989999999999998,31.84,null,null,"A1","Jan",44.51,20.28,231.72,19.98,26.96]
["Feb",{"$f":"+B10","v":150},68.63,22,431.4,{"$f":"+F10","v":50},22.07,39.81,null,null,null,"Feb",65.150000000000006,20.36,431.4,20.329999999999998,29.54]
["Mar",{"$f":"+B11","v":150},109.42,22.75,439.32,{"$f":"+F11","v":50},22.91,39.64,null,null,null,"Mar",109.42,22.37,164.25,22.66,39.64,null,"Whole Installation table A5:H18:"]
["Apr",150,92.8,19.89,350.32,50,19.690000000000001,41.63,null,null,null,"Apr",36.35,16.8,281.77,16.12,21.31,null,"Mean: for 10-min and daily periods use average of all operational combustion lines."]
["May",150,100.65,18.61,314.14999999999998,50,18.579999999999998,35.32,null,null,null,"May",100.65,18.73,297.83,18.63,35.32]
["Jun",150,93.59,19.170000000000002,436.13,50,18.91,45.73,null,null,null,"Jun",93.59,24.36,436.13,24.04,45.73]
["Jul",150,52.43,17.61,264.93,50,17.59,27.3,null,null,null,"Jul",47.49,20.47,250.74,20.47,27.3,null,"Maximum: for 10-min and daily periods use the highest of all operational combustion lines in any month."]
["Aug",150,97.06,21.31,387.05,50,21.36,30.5,null,null,null,"Aug",97.06,22.56,329.56,22.61,30.5]
["Sep",150,72.790000000000006,22.34,210.16,50,22.37,35.700000000000003,null,null,null,"Sep",49.42,21.48,147.62,21.16,26.2]
["Oct",150,59.36,19.309999999999999,747.2,50,19.07,28.36,null,null,null,"Oct",54.33,20.52,233.48,20.63,26.45]
["Nov",150,77,22.52,332.81,50,22.65,38.770000000000003,null,null,null,"Nov",62.51,26.55,332.81,26.54,38.770000000000003]
["Dec",150,86.52,22.62,301.41000000000003,50,22.7,33.58,null,null,null,"Dec",60.44,28.38,301.41000000000003,28.59,33.58]
[null,null,null,null,null,null,null,null,null,null,null,"Annual",{"$f":"AVERAGE(M10:M21)","v":68.410000000000011},null,{"$f":"MAX(O10:O21)","v":436.13},{"$f":"AVERAGE(P10:P21)","v":21.813333333333329},{"$f":"MAX(Q10:Q21)","v":45.73}]
[]
[null,null,null,null,null,null,null,null,null,null,{"$f":"+A8","v":2025},"mg/Nm3","Highest daily 95%ile 10-min average","Monthly mean of 10-min averages","Highest 10-min average","Monthly mean of  daily averages","Highest daily average"]
[null,null,null,null,null,null,null,null,null,null,"A2","Jan",51.16,18.21,251.46,18.2,26.41]
[null,null,null,null,null,null,null,null,null,null,null,"Feb",68.63,25.3,202.24,25.32,39.81]
[null,null,null,null,null,null,null,null,null,null,null,"Mar",85.94,27.11,439.32,27.14,37.44]
[null,null,null,null,null,null,null,null,null,null,null,"Apr",92.8,21.39,350.32,21.13,41.63]
[null,null,null,null,null,null,null,null,null,null,null,"May",47.48,15.47,193.52,15.47,19.86]
[null,null,null,null,null,null,null,null,null,null,null,"Jun",49.44,17.260000000000002,243.76,17.03,22.64]
[null,null,null,null,null,null,null,null,null,null,null,"Jul",49.93,15.74,130.86000000000001,15.75,21.09]
[null,null,null,null,null,null,null,null,null,null,null,"Aug",63.34,21.67,387.05,21.83,29.29]
[null,null,null,null,null,null,null,null,null,null,null,"Sep",72.790000000000006,25.45,146.72999999999999,25.47,35.700000000000003]
[null,null,null,null,null,null,null,null,null,null,null,"Oct",59.36,19.54,168.4,19.61,28.36]
[null,null,null,null,null,null,null,null,null,null,null,"Nov",77,21.79,174.3,21.78,31.43]
[null,null,null,null,null,null,null,null,null,null,null,"Dec",86.52,20.170000000000002,163.49,20.18,31.15]
[null,null,null,null,null,null,null,null,null,null,null,"Annual",{"$f":"AVERAGE(M25:M36)","v":67.032499999999999},null,{"$f":"MAX(O25:O36)","v":439.32},{"$f":"AVERAGE(P25:P36)","v":20.7425},{"$f":"MAX(Q25:Q36)","v":41.63}]
[]
[null,null,null,null,null,null,null,null,null,null,{"$f":"+A8","v":2025},"mg/Nm3","Highest daily 95%ile 10-min average","Monthly mean of 10-min averages","Highest 10-min average","Monthly mean of  daily averages","Highest daily average"]
[null,null,null,null,null,null,null,null,null,null,"A3","Jan",94.5,22.09,434.45,21.96,31.84]
[null,null,null,null,null,null,null,null,null,null,null,"Feb",57.11,20.09,296.61,19.989999999999998,26.14]
[null,null,null,null,null,null,null,null,null,null,null,"Mar",46.65,18.78,194.73,18.78,24.8]
[null,null,null,null,null,null,null,null,null,null,null,"Apr",44.3,20.81,235.04,20.74,25.49]
[null,null,null,null,null,null,null,null,null,null,null,"May",38.340000000000003,21.65,314.14999999999998,21.65,26.11]
[null,null,null,null,null,null,null,null,null,null,null,"Jun",40.08,15.78,272.93,15.56,20.79]
[null,null,null,null,null,null,null,null,null,null,null,"Jul",52.43,16.63,264.93,16.53,22.07]
[null,null,null,null,null,null,null,null,null,null,null,"Aug",41.37,19.68,312.26,19.600000000000001,27.2]
[null,null,null,null,null,null,null,null,null,null,null,"Sep",34.21,20.29,210.16,20.52,25.59]
[null,null,null,null,null,null,null,null,null,null,null,"Oct",40.340000000000003,18.02,747.2,17.27,21.86]
[null,null,null,null,null,null,null,null,null,null,null,"Nov",35.83,17.84,298.95999999999998,17.86,22.05]
["Comments :",null,null,null,null,null,null,null,null,null,null,"Dec",46.81,19.3,294.12,19.420000000000002,25.47]
["Environment Agency explanatory note: The 10-minute average ELV is based on the “95th percentile”. In this case this means that 95% of the 10 minute averages in the relevant 24-hour period (i.e. 137) must be below 150 mg/Nm3, and 5% (i.e. 7) are allowed to be any value above 150 mg/Nm3. Whilst we expect operators to minimise CO emissions at all times, it is perfectly acceptable for the value of the maximum 10-minute average to be above 150 mg/Nm3, provided the 95th percentile ELV has been met for that period. ",null,null,null,null,null,null,null,null,null,null,"Annual",{"$f":"AVERAGE(M40:M51)","v":47.664166666666667},null,{"$f":"MAX(O40:O51)","v":747.2},{"$f":"AVERAGE(P40:P51)","v":19.15666666666667},{"$f":"MAX(Q40:Q51)","v":31.84}]
[]
[null,null,null,null,null,null,null,null,null,null,{"$f":"+A8","v":2025},"mg/Nm3","Highest daily 95%ile 10-min average","Monthly mean of 10-min averages","Highest 10-min average","Monthly mean of  daily averages","Highest daily average"]
[null,null,null,null,null,null,null,null,null,null,"A4","Jan"]
[null,null,null,null,null,null,null,null,null,null,null,"Feb"]
[null,null,null,null,null,null,null,null,null,null,null,"Mar"]
[null,null,null,null,null,null,null,null,null,null,null,"Apr"]
[null,null,null,null,null,null,null,null,null,null,null,"May"]
[null,null,null,null,null,null,null,null,null,null,null,"Jun"]
[null,null,null,null,null,null,null,null,null,null,null,"Jul"]
[null,null,null,null,null,null,null,null,null,null,null,"Aug"]
[null,null,null,null,null,null,null,null,null,null,null,"Sep"]
[null,null,null,null,null,null,null,null,null,null,null,"Oct"]
[null,null,null,null,null,null,null,null,null,null,null,"Nov"]
[null,null,null,null,null,null,null,null,null,null,null,"Dec"]
[null,null,null,null,null,null,null,null,null,null,null,"Annual",{"$f":"AVERAGE(M55:M66)","v":{"$error":"#DIV/0!"}},null,{"$f":"MAX(O55:O66)","v":0},{"$f":"AVERAGE(P55:P66)","v":{"$error":"#DIV/0!"}},{"$f":"MAX(Q55:Q66)","v":0}]
[]
[null,null,null,null,null,null,null,null,null,null,{"$f":"+A8","v":2025},"mg/Nm3","95%ile 10-min avg maximum","Monthly CO 10-min avg mean","10-min avg maximum","Monthly daily mean","Monthly daily maximum"]
[null,null,null,null,null,null,null,null,null,null,"A5","Jan"]
[null,null,null,null,null,null,null,null,null,null,null,"Feb"]
[null,null,null,null,null,null,null,null,null,null,null,"Mar"]
[null,null,null,null,null,null,null,null,null,null,null,"Apr"]
[null,null,null,null,null,null,null,null,null,null,null,"May"]
[null,null,null,null,null,null,null,null,null,null,null,"Jun"]
[null,null,null,null,null,null,null,null,null,null,null,"Jul"]
[null,null,null,null,null,null,null,null,null,null,null,"Aug"]
[null,null,null,null,null,null,null,null,null,null,null,"Sep"]
[null,null,null,null,null,null,null,null,null,null,null,"Oct"]
[null,null,null,null,null,null,null,null,null,null,null,"Nov"]
[null,null,null,null,null,null,null,null,null,null,null,"Dec"]
[null,null,null,null,null,null,null,null,null,null,null,"Annual",{"$f":"AVERAGE(M70:M81)","v":{"$error":"#DIV/0!"}},null,{"$f":"MAX(O70:O81)","v":0},{"$f":"AVERAGE(P70:P81)","v":{"$error":"#DIV/0!"}},{"$f":"MAX(Q70:Q81)","v":0}]

{"sheet":"NH3","index":21,"n_rows":79,"n_cols":17,"rows_kept":79,"cut":false,"hidden":false,"merged":[[3,16,7,18],[9,16,11,18],[12,16,15,18],[66,9,78,9],[4,1,4,3],[4,4,4,6],[4,9,4,14],[6,9,18,9],[21,9,33,9],[36,9,48,9],[47,0,47,6],[48,0,51,6],[51,9,63,9],[18,4,18,6]]}
[{"$f":"+'Cover Page'!$B$29","v":"Annual Performance Report 2025"},null,null,null,{"$f":"+'Cover Page'!$B$33","v":"The CSWDC Waste to Energy Plant"}]
[]
["Monitoring of Ammnonia emissions ",null,null,"Whole Installation",null,null,"See  Notes in Cell Q3",null,null,{"$f":"+A3","v":"Monitoring of Ammnonia emissions "},null,null,null,"Per Combustion Line",null,null,"Notes:"]
[null,null,null,null,null,null,null,null,null,null,null,null,null,null,null,null,"User to add logic to complete Whole installation, Table A5:G18. From the data in Per Combustion Line, Table J6:O79, subject to No. of lines installed"]
[{"$f":"+'Cover Page'!C39","v":2025},"1/2 Hourly Reference Periods",null,null,"Daily Reference Periods"]
["mg/Nm3","1/2 hourly NH3 ELV","Monthly mean of half-hourly averages","Highest half- hourly average","Daily NH3 ELV","Monthly mean of  daily averages","Highest daily average",null,null,{"$f":"+A5","v":2025},"mg/Nm3","Monthly mean of half-hourly averages","Highest half- hourly average","Monthly mean of  daily averages","Highest daily average"]
["Jan","None",6.04,21.09,15,6.13,12.26,null,null,"A1","Jan",3.81,9.4600000000000009,3.81,5.6]
["Feb",{"$f":"+B7","v":"None"},4.2699999999999996,15.74,15,4.28,8.59,null,null,null,"Feb",3.99,9.1,3.93,4.8899999999999997]
["Mar",{"$f":"+B8","v":"None"},3.68,10.33,15,3.68,5.83,null,null,null,"Mar",3.72,9.98,3.72,4.99,null,"Whole Installation table A5:G18:"]
["Apr","None",4.4800000000000004,16.2,15,4.5199999999999996,10.8,null,null,null,"Apr",6.57,16.2,6.84,10.8,null,"Mean: for 1/2 hourly and daily periods calculate mean of values across all operational combustion lines for the month"]
["May","None",5.42,17.59,15,5.41,10.3,null,null,null,"May",6.05,17.59,6.07,8.69]
["Jun","None",6.18,33.54,15,6.23,12.1,null,null,null,"Jun",8.02,33.54,8.11,12.1]
["Jul","None",5.76,18.78,15,5.78,10.06,null,null,null,"Jul",6.42,14.47,6.42,10.06,null,"Maximum: for 1/2 hourly and daily periods use the highest value across all operational combustion lines for the month"]
["Aug","None",4.49,26.84,15,4.5,8.41,null,null,null,"Aug",5.92,18.309999999999999,5.93,8.41]
["Sep","None",5.21,15.15,15,5.22,11.22,null,null,null,"Sep",8.75,15.15,8.86,11.22]
["Oct","None",5.91,26.61,15,6.05,10.26,null,null,null,"Oct",5.72,26.61,5.93,10.26]
["Nov","None",6.36,20.34,15,6.43,12.87,null,null,null,"Nov",8.24,20.34,8.25,12.87]
["Dec","None",5.28,20.96,15,5.29,7.68,null,null,null,"Dec",6.06,15.09,6.06,7.68]
[null,null,null,null,null,null,null,null,null,null,"Annual",{"$f":"AVERAGE(L7:L18)","v":6.1058333333333339},{"$f":"MAX(M7:M18)","v":33.54},{"$f":"AVERAGE(N7:N18)","v":6.1608333333333336},{"$f":"MAX(O7:O18)","v":12.87}]
[]
[null,null,null,null,null,null,null,null,null,{"$f":"+A5","v":2025},"mg/Nm3","Monthly mean of half-hourly averages","Highest half- hourly average","Monthly mean of  daily averages","Highest daily average"]
[null,null,null,null,null,null,null,null,null,"A2","Jan",8.7899999999999991,19.75,8.7899999999999991,12.26]
[null,null,null,null,null,null,null,null,null,null,"Feb",4.63,12.42,4.62,8.59]
[null,null,null,null,null,null,null,null,null,null,"Mar",3.5,10.16,3.51,5.17]
[null,null,null,null,null,null,null,null,null,null,"Apr",4.63,14.27,4.6900000000000004,8.01]
[null,null,null,null,null,null,null,null,null,null,"May",7.05,13.41,7.05,10.3]
[null,null,null,null,null,null,null,null,null,null,"Jun",5.41,16.62,5.45,10.050000000000001]
[null,null,null,null,null,null,null,null,null,null,"Jul",6.18,18.78,6.18,7.57]
[null,null,null,null,null,null,null,null,null,null,"Aug",4.9800000000000004,26.84,4.99,7.99]
[null,null,null,null,null,null,null,null,null,null,"Sep",3.5,8.65,3.5,5.82]
[null,null,null,null,null,null,null,null,null,null,"Oct",6.69,11.95,6.8,7.89]
[null,null,null,null,null,null,null,null,null,null,"Nov",5.65,12.71,5.65,8.2200000000000006]
[null,null,null,null,null,null,null,null,null,null,"Dec",5.05,19.86,5.05,7.08]
[null,null,null,null,null,null,null,null,null,null,"Annual",{"$f":"AVERAGE(L22:L33)","v":5.5049999999999999},{"$f":"MAX(M22:M33)","v":26.84},{"$f":"AVERAGE(N22:N33)","v":5.5233333333333334},{"$f":"MAX(O22:O33)","v":12.26}]
[]
[null,null,null,null,null,null,null,null,null,{"$f":"+A5","v":2025},"mg/Nm3","Monthly mean of half-hourly averages","Highest half- hourly average","Monthly mean of  daily averages","Highest daily average"]
[null,null,null,null,null,null,null,null,null,"A3","Jan",5.0599999999999996,21.09,4.96,11.56]
[null,null,null,null,null,null,null,null,null,null,"Feb",4.1500000000000004,15.74,4.2,6.29]
[null,null,null,null,null,null,null,null,null,null,"Mar",3.82,10.33,3.81,5.83]
[null,null,null,null,null,null,null,null,null,null,"Apr",2.95,10.93,2.93,4.9800000000000004]
[null,null,null,null,null,null,null,null,null,null,"May",3.16,12.89,3.16,5.88]
[null,null,null,null,null,null,null,null,null,null,"Jun",5.12,10.02,5.14,7.48]
[null,null,null,null,null,null,null,null,null,null,"Jul",4.66,9.64,4.7,5.95]
[null,null,null,null,null,null,null,null,null,null,"Aug",2.5299999999999998,20.57,2.52,4.62]
[null,null,null,null,null,null,null,null,null,null,"Sep",3.6,8.4499999999999993,3.67,5.33]
[null,null,null,null,null,null,null,null,null,null,"Oct",5.47,11.57,5.57,7.83]
[null,null,null,null,null,null,null,null,null,null,"Nov",4.71,14.53,4.82,6.17]
["Comments :",null,null,null,null,null,null,null,null,null,"Dec",4.7300000000000004,20.96,4.76,6.79]
["An indicated ELV value of zero in the table above means that no ammonia limit is/was set in the permit.  ",null,null,null,null,null,null,null,null,null,"Annual",{"$f":"AVERAGE(L37:L48)","v":4.163333333333334},{"$f":"MAX(M37:M48)","v":21.09},{"$f":"AVERAGE(N37:N48)","v":4.1866666666666665},{"$f":"MAX(O37:O48)","v":11.56}]
[]
[null,null,null,null,null,null,null,null,null,{"$f":"+A5","v":2025},"mg/Nm3","Monthly mean of half-hourly averages","Highest half- hourly average","Monthly mean of  daily averages","Highest daily average"]
[null,null,null,null,null,null,null,null,null,"A4","Jan"]
[null,null,null,null,null,null,null,null,null,null,"Feb"]
[null,null,null,null,null,null,null,null,null,null,"Mar"]
[null,null,null,null,null,null,null,null,null,null,"Apr"]
[null,null,null,null,null,null,null,null,null,null,"May"]
[null,null,null,null,null,null,null,null,null,null,"Jun"]
[null,null,null,null,null,null,null,null,null,null,"Jul"]
[null,null,null,null,null,null,null,null,null,null,"Aug"]
[null,null,null,null,null,null,null,null,null,null,"Sep"]
[null,null,null,null,null,null,null,null,null,null,"Oct"]
[null,null,null,null,null,null,null,null,null,null,"Nov"]
[null,null,null,null,null,null,null,null,null,null,"Dec"]
[null,null,null,null,null,null,null,null,null,null,"Annual",{"$f":"AVERAGE(L52:L63)","v":{"$error":"#DIV/0!"}},{"$f":"MAX(M52:M63)","v":0},{"$f":"AVERAGE(N52:N63)","v":{"$error":"#DIV/0!"}},{"$f":"MAX(O52:O63)","v":0}]
[]
[null,null,null,null,null,null,null,null,null,{"$f":"+A5","v":2025},"mg/Nm3","Monthly mean of half-hourly averages","Highest half- hourly average","Monthly mean of  daily averages","Highest daily average"]
[null,null,null,null,null,null,null,null,null,"A5","Jan"]
[null,null,null,null,null,null,null,null,null,null,"Feb"]
[null,null,null,null,null,null,null,null,null,null,"Mar"]
[null,null,null,null,null,null,null,null,null,null,"Apr"]
[null,null,null,null,null,null,null,null,null,null,"May"]
[null,null,null,null,null,null,null,null,null,null,"Jun"]
[null,null,null,null,null,null,null,null,null,null,"Jul"]
[null,null,null,null,null,null,null,null,null,null,"Aug"]
[null,null,null,null,null,null,null,null,null,null,"Sep"]
[null,null,null,null,null,null,null,null,null,null,"Oct"]
[null,null,null,null,null,null,null,null,null,null,"Nov"]
[null,null,null,null,null,null,null,null,null,null,"Dec"]
[null,null,null,null,null,null,null,null,null,null,"Annual",{"$f":"AVERAGE(L67:L78)","v":{"$error":"#DIV/0!"}},{"$f":"MAX(M67:M78)","v":0},{"$f":"AVERAGE(N67:N78)","v":{"$error":"#DIV/0!"}},{"$f":"MAX(O67:O78)","v":0}]

{"sheet":"Template changes log","index":22,"n_rows":23,"n_cols":3,"rows_kept":23,"cut":false,"hidden":false,"merged":[]}
["Log of changes to template (Environment Agency use only)"]
[]
["Date","Description of change","New version number and date"]
["2024-01-16","Air (periodic) tab: corrected default O2 reference from 6 to 11% ","Version 23.5a (for incinerators) - 16/01/2024"]
["2024-09-23","Air (periodic) tab: corrected symbol for Thallium to Tl"]
["2024-09-23","Air (periodic) tab: removed last year's references to different emission limit values applying from 03/12/23 and updated all relevant ELVs"]
["2024-09-23","Tabs for continuously monitored pollutants (HCl, SO2 etc.): changed terminology in table headings to improve clarity"]
["2024-09-23","Tabs for continuously monitored pollutants (HCl, SO2 etc.): removed last year's references to different emission limit values applying from 03/12/23 and updated all relevant ELVs"]
["2024-09-23","Perf 1 tab: updated formula for water usage to report m3 rather than litres and corrected error with formula copying operator name"]
["2024-09-23","Operational Summary tab: table added on start-ups and shut-downs"]
["2024-09-23","Operational Summary tab: table added on dioxins and mercury protocols"]
["2024-09-23","Operational Summary tab: table added on AST, QAL 2 and calibration functions"]
["2024-09-23","CO2 N2O tab: various changes made to notes to reflect the fact that most plants should now have calibrated CEMS and flow meters + some have C14 samplers and more up to date industry data","Version 24a (for incinerators) - 23/09/24"]
["2024-11-08","CO2 N2O tab: Changed the N2O CO2 equivalence factor from 298 to 265 in line with recently updated government greenhouse gas figures: https://www.gov.uk/government/publications/greenhouse-gas-reporting-conversion-factors-2024"]
["2024-11-08","CO2 N2O tab: Added an additional requirement for municipal EfW plants to state the yearly average biogenic percentage of the waste by mass, and reference to a document which sets out a methodology for calculating NCV of waste from the results of C14 sampling."]
["2024-11-08","Permit Compliance tab: Two additional columns added + explanatory notes to the table entitled \"Summary of non-compliances under the permit\" to allow CCS scores to be stated where relevant. "]
["2024-11-08","Residue Quality tab: Note added explaining application of TOC and LOI limits and asking operators to report both metrics where measured. ","Version 24.1a (for incinerators) - 08/11/24"]
["2024-11-27","Operational Summary tab: table added on start-ups and shut-downs","Version 24.2a (for incinerators) - 27/11/24"]
["2025-11-27","Cover Page: Print as PDF and Print Report and pdf buttons deleted and blank columns removed; contents page deleted","Version 25.1a (for incinerators) - 27/11/25"]
["2025-11-27","Residue Quality tab renamed to \"Residues\", and Summary of residue handling table moved from Operational Summary tab to Residues tab."]
["2025-11-27","Various changes made to the Operational Data tab including\n•\tReformatting of the rows under the Operational data heading (Rows 3-8) to make it clearer what information is required. \n•\tAmendment of the rows under the Energy Usage / Export heading (Rows 26-32) to calculate an “indicative parasitic load” (now excluding energy imported)\n•\tAmendment of the unit for gas usage from cubic feet to cubic metres (Row 50) \n•\tSome amendments to the first 2 notes and other minor edits\n•\tDeleted \"Overall Availability, mean avg. of all lines, hrs\" row"]
["2025-11-27","Operational Summary tab: Note added requiring all emergency shut-downs be listed, irrespective of whether or not they were reportable. "]
["2025-11-27","CO2 N2O tab: Note added to ask operators to ensure that relevant data reported here matches that which will be submitted under the Pollution Inventory"]